{"text_format":"1","workbook":"xlsx","n_sheets":6,"sheets":["Main","الصف الثاني","شيت طباعة","ناجحات","دور ثان","راسبات"],"not_rendered":{"charts":0,"images":2,"macros":1,"external_links":4,"defined_names":81,"comments":0,"pivot_tables":0},"unopened":[],"bounds":{"document_bytes":16777216,"sheet_cells":100000,"rows_first":2000,"rows_last":500,"rows_between":2000,"halvings":0,"cell_chars":16384,"cell_head_chars":4096},"cells_cut":0,"cells_raw":0,"read":"whole","date_system":"1900"}

{"sheet":"Main","index":0,"n_rows":1,"n_cols":1,"rows_kept":1,"cut":false,"hidden":true,"merged":[]}
["            "]

{"sheet":"الصف الثاني","index":1,"n_rows":38,"n_cols":89,"rows_kept":38,"cut":false,"hidden":false,"merged":[[0,0,2,10],[0,26,0,28],[0,29,0,31],[0,32,0,34],[0,35,0,37],[0,38,0,40],[0,41,0,43],[0,11,0,13],[0,14,0,16],[0,17,0,19],[0,20,0,22],[0,23,0,25],[0,44,0,46],[0,47,0,49],[0,51,0,53],[0,54,3,54],[0,55,3,55],[0,50,1,50]]}
[null,null,null,null,null,null,null,null,null,null,null,"لغة عربية",null,null,"لغة إنجليزية",null,null,"رياضيات",null,null,"فيزياء",null,null,"حاسب آلي",null,null,"أمن صناعي",null,null,"رسم فني",null,null,"تخطيط",null,null,"تكنولوجيا العمليات نظري",null,null,"تك خامات نظري",null,null,"تك الاجهزة",null,null,"تاريخ الفنون",null,null,"تك العمليات ع",null,null,"المجموع الكلي","تربية دينية",null,null,"النتيجة","المواد"]
[null,null,null,null,null,null,null,null,null,null,null,"نصف العام","آخر العام","المجموع","نصف العام","آخر العام","المجموع","نصف العام","آخر العام","المجموع","نصف العام","آخر العام","المجموع","نصف العام","آخر العام","المجموع","نصف العام","آخر العام","المجموع","نصف العام","آخر العام","المجموع","نصف العام","آخر العام","المجموع","نصف العام","آخر العام","المجموع","نصف العام","آخر العام","المجموع","نصف العام","آخر العام","المجموع","نصف العام","آخر العام","المجموع","نصف العام","آخر العام","المجموع",null,"نصف العام","آخر العام","المجموع"]
[null,null,null,null,null,null,null,null,null,null,null,25,25,50,20,20,40,25,25,50,20,20,40,10,10,20,10,10,20,50,50,100,20,20,40,30,30,60,25,25,50,25,25,50,20,20,40,70,70,140,{"$f":"SUM(N3,Q3,T3,W3,Z3,AC3,AF3,AI3,AL3,AO3,AR3,AU3,AX3)","v":700},10,10,20,null,null,null,null,null,{"$f":"COUNTIF(BH21:BH22,\"عربي\")","v":2},{"$f":"COUNTIF(BI21:BI22,\"انجليزي\")","v":2},{"$f":"COUNTIF(BJ21:BJ22,\"رياضيات\")","v":2},{"$f":"COUNTIF(BK21:BK22,\"فيزياء\")","v":2},{"$f":"COUNTIF(BL21:BL22,\"حاسب\")","v":2},{"$f":"COUNTIF(BM21:BM22,\"امن صناعي\")","v":2},{"$f":"COUNTIF(BN21:BN22,\"رسم فني\")","v":2},{"$f":"COUNTIF(BO21:BO22,\"تخطيط\")","v":2},{"$f":"COUNTIF(BP21:BP22,\"تكنولوجيا عمليات نظري\")","v":2},{"$f":"COUNTIF(BQ21:BQ22,\"تاريخ الفنون\")","v":2},{"$f":"COUNTIF(BR21:BR22,\"تكنولوجيا الخامات\")","v":2},{"$f":"COUNTIF(BS21:BS22,\"تكنولوجيا الاجهزة\")","v":2},{"$f":"COUNTIF(BT21:BT22,\"تكنولوجيا العمليات عملي\")","v":2},{"$f":"COUNTIF(BU21:BU22,\"تربية دينية\")","v":2}]
["م","الرقم السري","الرقم السري","رقم الجلوس","اســــــــــــــــــم الطالبة","الرقم القومي","تاريخ الميلاد","الصناعة","حالة القيد","الديانة","الجنسية",null,6.25,25,null,5,20,null,6.25,25,null,5,20,null,2.5,10,null,2.5,10,null,12.5,50,null,5,20,null,7.5,30,null,6.25,25,null,6.25,25,null,5,20,null,17.5,70,350,null,2.5,10,null,null,null,null,null,"عربي","انجليزي","رياضيات","فيزياء","حاسب","أمن صناعي","رسم قني","تخطيط","تك عمليات نظري","تاريخ الفنون","تك الخامات","تك الاجهزة","تك العمليات عملي","تربية دينية",null,"عربي","انجليزي","رياضيات","فيزياء","حاسب","أمن صناعي","رسم قني","تخطيط","تك عمليات نظري","تاريخ الفنون","تك الخامات","تك الاجهزة","تك العمليات عملي","تربية دينية"]
[1,null,1501,2701,"اسراء ابراهيم نبيل على محمد عمر",29909281800504,"1999-09-28","زخرفة قرار","منقولة","مسلمة","مصرية",14,null,{"$f":"SUM(L5:M5)","v":14},9,null,{"$f":"SUM(O5:P5)","v":9},3,null,{"$f":"SUM(R5:S5)","v":3},11.5,null,{"$f":"SUM(U5:V5)","v":11.5},5,null,{"$f":"SUM(X5:Y5)","v":5},5,null,{"$f":"SUM(AA5:AB5)","v":5},40,null,{"$f":"SUM(AD5:AE5)","v":40},5,null,{"$f":"AG5+AH5","v":5},27,null,{"$f":"SUM(AJ5:AK5)","v":27},13,null,{"$f":"SUM(AM5:AN5)","v":13},17,null,{"$f":"SUM(AP5+AQ5)","v":17},13,null,{"$f":"SUM(AS5:AT5)","v":13},58,null,{"$f":"SUM(AV5:AW5)","v":58},220.5,7,null,{"$f":"SUM(AZ5:BA5)","v":7},{"$f":"IF(AND(CK5=0,CJ5=0),\"ناجحة\",IF(CK5>2,\"راسبة\",\"دور ثان\"))","v":"راسبة"},{"$f":"CONCATENATE(BE5,\" - \",BF5)","v":"عربي - انجليزي - رياضيات - فيزياء -  - حاسب - امن صناعي - رسم فني - تخطيط - تكنولوجيا عمليات نظري - تاريخ الفنون - تكنولوجيا الخامات - تكنولوجيا الاجهزة - تكنولوجيا العمليات عملي - تربية دينية"},{"$f":"CONCATENATE(BH5,\" - \",BI5,\" - \",BJ5,\" - \",BK5,\" - \",\" - \",BL5,\" - \",BM5,\" - \",BN5)","v":"عربي - انجليزي - رياضيات - فيزياء -  - حاسب - امن صناعي - رسم فني"},{"$f":"CONCATENATE(BO5,\" - \",BP5,\" - \",BQ5,\" - \",BR5,\" - \",BS5,\" - \",BT5,\" - \",BU5)","v":"تخطيط - تكنولوجيا عمليات نظري - تاريخ الفنون - تكنولوجيا الخامات - تكنولوجيا الاجهزة - تكنولوجيا العمليات عملي - تربية دينية"},null,{"$f":"IF(BW5=1,\"عربي\",\"\")","v":"عربي"},{"$f":"IF(BX5=1,\"انجليزي\",\"\")","v":"انجليزي"},{"$f":"IF(BY5=1,\"رياضيات\",\"\")","v":"رياضيات"},{"$f":"IF(BZ5=1,\"فيزياء\",\"\")","v":"فيزياء"},{"$f":"IF(CA5=1,\"حاسب\",\"\")","v":"حاسب"},{"$f":"IF(CB5=1,\"امن صناعي\",\"\")","v":"امن صناعي"},{"$f":"IF(CC5=1,\"رسم فني\",\"\")","v":"رسم فني"},{"$f":"IF(CD5=1,\"تخطيط\",\"\")","v":"تخطيط"},{"$f":"IF(CE5=1,\"تكنولوجيا عمليات نظري\",\"\")","v":"تكنولوجيا عمليات نظري"},{"$f":"IF(CF5=1,\"تاريخ الفنون\",\"\")","v":"تاريخ الفنون"},{"$f":"IF(CG5=1,\"تكنولوجيا الخامات\",\"\")","v":"تكنولوجيا الخامات"},{"$f":"IF(CH5=1,\"تكنولوجيا الاجهزة\",\"\")","v":"تكنولوجيا الاجهزة"},{"$f":"IF(CI5=1,\"تكنولوجيا العمليات عملي\",\"\")","v":"تكنولوجيا العمليات عملي"},{"$f":"IF(CJ5=1,\"تربية دينية\",\"\")","v":"تربية دينية"},null,{"$f":"IF(OR(N5<$N$4,M5<$M$4,M5=\"غ\"),1,0)","v":1},{"$f":"IF(OR(Q5<$Q$4,P5<$P$4,P5=\"غ\"),1,0)","v":1},{"$f":"IF(OR(T5<$T$4,S5<$S$4,S5=\"غ\"),1,0)","v":1},{"$f":"IF(OR(W5<$W$4,V5<$V$4,V5=\"غ\"),1,0)","v":1},{"$f":"IF(OR(Z5<$Z$4,Y5<$Y$4,Y5=\"غ\"),1,0)","v":1},{"$f":"IF(OR(AC5<$AC$4,AB5<$AB$4,AB5=\"غ\"),1,0)","v":1},{"$f":"IF(OR(AF5<$AF$4,AE5<$AE$4,AE5=\"غ\"),1,0)","v":1},{"$f":"IF(OR(AI5<$AI$4,AH5<$AH$4,AH5=\"غ\"),1,0)","v":1},{"$f":"IF(OR(AL5<$AL$4,AK5<$AK$4,AK5=\"غ\"),1,0)","v":1},{"$f":"IF(OR(AO5<$AO$4,AN5<$AN$4,AN5=\"غ\"),1,0)","v":1},{"$f":"IF(OR(AR5<$AR$4,AQ5<$AQ$4,AQ5=\"غ\"),1,0)","v":1},{"$f":"IF(OR(AU5<$AU$4,AT5<$AT$4,AT5=\"غ\"),1,0)","v":1},{"$f":"IF(OR(AX5<$AX$4,AW5<$AW$4,AW5=\"غ\"),1,0)","v":1},{"$f":"IF(OR(BB5<$BB$4,BA5<$BA$4,BA5=\"غ\"),1,0)","v":1},{"$f":"SUM(BW5:CI5)","v":13}]
[2,null,1502,2702,"اسراء حسن فؤاد موسى محمد غراب",29612051801843,"1996-12-05","زخرفة قرار","منقولة","مسلمة","مصرية",16.5,null,{"$f":"SUM(L6:M6)","v":16.5},10,null,{"$f":"SUM(O6:P6)","v":10},9.5,null,{"$f":"SUM(R6:S6)","v":9.5},10,null,{"$f":"SUM(U6:V6)","v":10},5,null,{"$f":"SUM(X6:Y6)","v":5},7,null,{"$f":"SUM(AA6:AB6)","v":7},40,null,{"$f":"SUM(AD6:AE6)","v":40},3,null,{"$f":"AG6+AH6","v":3},26,null,{"$f":"SUM(AJ6:AK6)","v":26},17,null,{"$f":"SUM(AM6:AN6)","v":17},17,null,{"$f":"SUM(AP6+AQ6)","v":17},12,null,{"$f":"SUM(AS6:AT6)","v":12},55,null,{"$f":"SUM(AV6:AW6)","v":55},{"$f":"SUM(N6,Q6,T6,W6,Z6,AC6,AF6,AI6,AL6,AO6,AR6,AU6,AX6)","v":228},6.5,null,6.5,{"$f":"IF(AND(CK6=0,CJ6=0),\"ناجحة\",IF(CK6>2,\"راسبة\",\"دور ثان\"))","v":"راسبة"},{"$f":"CONCATENATE(BE6,\" - \",BF6)","v":"عربي - انجليزي - رياضيات - فيزياء -  - حاسب - امن صناعي - رسم فني - تخطيط - تكنولوجيا عمليات نظري - تاريخ الفنون - تكنولوجيا الخامات - تكنولوجيا الاجهزة - تكنولوجيا العمليات عملي - تربية دينية"},{"$f":"CONCATENATE(BH6,\" - \",BI6,\" - \",BJ6,\" - \",BK6,\" - \",\" - \",BL6,\" - \",BM6,\" - \",BN6)","v":"عربي - انجليزي - رياضيات - فيزياء -  - حاسب - امن صناعي - رسم فني"},{"$f":"CONCATENATE(BO6,\" - \",BP6,\" - \",BQ6,\" - \",BR6,\" - \",BS6,\" - \",BT6,\" - \",BU6)","v":"تخطيط - تكنولوجيا عمليات نظري - تاريخ الفنون - تكنولوجيا الخامات - تكنولوجيا الاجهزة - تكنولوجيا العمليات عملي - تربية دينية"},null,{"$f":"IF(BW6=1,\"عربي\",\"\")","v":"عربي"},{"$f":"IF(BX6=1,\"انجليزي\",\"\")","v":"انجليزي"},{"$f":"IF(BY6=1,\"رياضيات\",\"\")","v":"رياضيات"},{"$f":"IF(BZ6=1,\"فيزياء\",\"\")","v":"فيزياء"},{"$f":"IF(CA6=1,\"حاسب\",\"\")","v":"حاسب"},{"$f":"IF(CB6=1,\"امن صناعي\",\"\")","v":"امن صناعي"},{"$f":"IF(CC6=1,\"رسم فني\",\"\")","v":"رسم فني"},{"$f":"IF(CD6=1,\"تخطيط\",\"\")","v":"تخطيط"},{"$f":"IF(CE6=1,\"تكنولوجيا عمليات نظري\",\"\")","v":"تكنولوجيا عمليات نظري"},{"$f":"IF(CF6=1,\"تاريخ الفنون\",\"\")","v":"تاريخ الفنون"},{"$f":"IF(CG6=1,\"تكنولوجيا الخامات\",\"\")","v":"تكنولوجيا الخامات"},{"$f":"IF(CH6=1,\"تكنولوجيا الاجهزة\",\"\")","v":"تكنولوجيا الاجهزة"},{"$f":"IF(CI6=1,\"تكنولوجيا العمليات عملي\",\"\")","v":"تكنولوجيا العمليات عملي"},{"$f":"IF(CJ6=1,\"تربية دينية\",\"\")","v":"تربية دينية"},null,{"$f":"IF(OR(N6<$N$4,M6<$M$4,M6=\"غ\"),1,0)","v":1},{"$f":"IF(OR(Q6<$Q$4,P6<$P$4,P6=\"غ\"),1,0)","v":1},{"$f":"IF(OR(T6<$T$4,S6<$S$4,S6=\"غ\"),1,0)","v":1},{"$f":"IF(OR(W6<$W$4,V6<$V$4,V6=\"غ\"),1,0)","v":1},{"$f":"IF(OR(Z6<$Z$4,Y6<$Y$4,Y6=\"غ\"),1,0)","v":1},{"$f":"IF(OR(AC6<$AC$4,AB6<$AB$4,AB6=\"غ\"),1,0)","v":1},{"$f":"IF(OR(AF6<$AF$4,AE6<$AE$4,AE6=\"غ\"),1,0)","v":1},{"$f":"IF(OR(AI6<$AI$4,AH6<$AH$4,AH6=\"غ\"),1,0)","v":1},{"$f":"IF(OR(AL6<$AL$4,AK6<$AK$4,AK6=\"غ\"),1,0)","v":1},{"$f":"IF(OR(AO6<$AO$4,AN6<$AN$4,AN6=\"غ\"),1,0)","v":1},{"$f":"IF(OR(AR6<$AR$4,AQ6<$AQ$4,AQ6=\"غ\"),1,0)","v":1},{"$f":"IF(OR(AU6<$AU$4,AT6<$AT$4,AT6=\"غ\"),1,0)","v":1},{"$f":"IF(OR(AX6<$AX$4,AW6<$AW$4,AW6=\"غ\"),1,0)","v":1},{"$f":"IF(OR(BB6<$BB$4,BA6<$BA$4,BA6=\"غ\"),1,0)","v":1},{"$f":"SUM(BW6:CI6)","v":13}]
[3,null,1503,2703,"اسراء حسين بسيوني سلامة ",30101151802201,"2001-01-15","زخرفة قرار","منقولة","مسلمة","مصرية",14.5,null,14.5,9,null,9,19.5,null,19.5,15,null,15,5,null,5,7,null,7,40,null,40,10,null,10,25,null,25,19,null,19,17,null,17,11,null,11,56,null,56,248,6.5,null,6.5,"راسبة","عربي - انجليزي - رياضيات - فيزياء -  - حاسب - امن صناعي - رسم فني - تخطيط - تكنولوجيا عمليات نظري - تاريخ الفنون - تكنولوجيا الخامات - تكنولوجيا الاجهزة - تكنولوجيا العمليات عملي - تربية دينية","عربي - انجليزي - رياضيات - فيزياء -  - حاسب - امن صناعي - رسم فني","تخطيط - تكنولوجيا عمليات نظري - تاريخ الفنون - تكنولوجيا الخامات - تكنولوجيا الاجهزة - تكنولوجيا العمليات عملي - تربية دينية",null,"عربي","انجليزي","رياضيات","فيزياء","حاسب","امن صناعي","رسم فني","تخطيط","تكنولوجيا عمليات نظري","تاريخ الفنون","تكنولوجيا الخامات","تكنولوجيا الاجهزة","تكنولوجيا العمليات عملي","تربية دينية",null,1,1,1,1,1,1,1,1,1,1,1,1,1,1,13]
[4,null,1504,2704,"اسراء محمد مسعود السيد ابراهيم",30102141800282,"2001-02-14","زخرفة قرار","منقولة","مسلمة","مصرية",14.5,null,14.5,10,null,10,17,null,17,13.5,null,13.5,5,null,5,5,null,5,50,null,50,11,null,11,24,null,24,19,null,19,19,null,19,11,null,11,57,null,57,256,8,null,8,"راسبة","عربي - انجليزي - رياضيات - فيزياء -  - حاسب - امن صناعي - رسم فني - تخطيط - تكنولوجيا عمليات نظري - تاريخ الفنون - تكنولوجيا الخامات - تكنولوجيا الاجهزة - تكنولوجيا العمليات عملي - تربية دينية","عربي - انجليزي - رياضيات - فيزياء -  - حاسب - امن صناعي - رسم فني","تخطيط - تكنولوجيا عمليات نظري - تاريخ الفنون - تكنولوجيا الخامات - تكنولوجيا الاجهزة - تكنولوجيا العمليات عملي - تربية دينية",null,"عربي","انجليزي","رياضيات","فيزياء","حاسب","امن صناعي","رسم فني","تخطيط","تكنولوجيا عمليات نظري","تاريخ الفنون","تكنولوجيا الخامات","تكنولوجيا الاجهزة","تكنولوجيا العمليات عملي","تربية دينية",null,1,1,1,1,1,1,1,1,1,1,1,1,1,1,13]
[5,null,1505,2705,"اية محمد خليفة محمود البنا",29611241801827,"1996-11-24","زخرفة قرار","منقولة","مسلمة","مصرية",12,null,12,7,null,7,16,null,16,13.5,null,13.5,5,null,5,5,null,5,35,null,35,10,null,10,24,null,24,18,null,18,18,null,18,11,null,11,54,null,54,228.5,6,null,6,"راسبة","عربي - انجليزي - رياضيات - فيزياء -  - حاسب - امن صناعي - رسم فني - تخطيط - تكنولوجيا عمليات نظري - تاريخ الفنون - تكنولوجيا الخامات - تكنولوجيا الاجهزة - تكنولوجيا العمليات عملي - تربية دينية","عربي - انجليزي - رياضيات - فيزياء -  - حاسب - امن صناعي - رسم فني","تخطيط - تكنولوجيا عمليات نظري - تاريخ الفنون - تكنولوجيا الخامات - تكنولوجيا الاجهزة - تكنولوجيا العمليات عملي - تربية دينية",null,"عربي","انجليزي","رياضيات","فيزياء","حاسب","امن صناعي","رسم فني","تخطيط","تكنولوجيا عمليات نظري","تاريخ الفنون","تكنولوجيا الخامات","تكنولوجيا الاجهزة","تكنولوجيا العمليات عملي","تربية دينية",null,1,1,1,1,1,1,1,1,1,1,1,1,1,1,13]
[6,null,1506,2706,"ايمان ابراهيم محمود الحناوي",29903131800761,"1999-03-13","زخرفة قرار","منقولة","مسلمة","مصرية",14,null,14,8.5,null,8.5,18,null,18,13.5,null,13.5,5,null,5,5,null,5,40,null,40,9,null,9,23,null,23,18,null,18,19,null,19,11,null,11,57,null,57,241,8,null,8,"راسبة","عربي - انجليزي - رياضيات - فيزياء -  - حاسب - امن صناعي - رسم فني - تخطيط - تكنولوجيا عمليات نظري - تاريخ الفنون - تكنولوجيا الخامات - تكنولوجيا الاجهزة - تكنولوجيا العمليات عملي - تربية دينية","عربي - انجليزي - رياضيات - فيزياء -  - حاسب - امن صناعي - رسم فني","تخطيط - تكنولوجيا عمليات نظري - تاريخ الفنون - تكنولوجيا الخامات - تكنولوجيا الاجهزة - تكنولوجيا العمليات عملي - تربية دينية",null,"عربي","انجليزي","رياضيات","فيزياء","حاسب","امن صناعي","رسم فني","تخطيط","تكنولوجيا عمليات نظري","تاريخ الفنون","تكنولوجيا الخامات","تكنولوجيا الاجهزة","تكنولوجيا العمليات عملي","تربية دينية",null,1,1,1,1,1,1,1,1,1,1,1,1,1,1,13]
[7,null,1507,2707,"بسمة محمد عبد الفتاح سعد",30002121803108,"2000-02-12","زخرفة قرار","منقولة","مسلمة","مصرية",14.5,null,14.5,10.5,null,10.5,16.5,null,16.5,13.5,null,13.5,5,null,5,5,null,5,35,null,35,10,null,10,25,null,25,19,null,19,19,null,19,11,null,11,60,null,60,244,8,null,8,"راسبة","عربي - انجليزي - رياضيات - فيزياء -  - حاسب - امن صناعي - رسم فني - تخطيط - تكنولوجيا عمليات نظري - تاريخ الفنون - تكنولوجيا الخامات - تكنولوجيا الاجهزة - تكنولوجيا العمليات عملي - تربية دينية","عربي - انجليزي - رياضيات - فيزياء -  - حاسب - امن صناعي - رسم فني","تخطيط - تكنولوجيا عمليات نظري - تاريخ الفنون - تكنولوجيا الخامات - تكنولوجيا الاجهزة - تكنولوجيا العمليات عملي - تربية دينية",null,"عربي","انجليزي","رياضيات","فيزياء","حاسب","امن صناعي","رسم فني","تخطيط","تكنولوجيا عمليات نظري","تاريخ الفنون","تكنولوجيا الخامات","تكنولوجيا الاجهزة","تكنولوجيا العمليات عملي","تربية دينية",null,1,1,1,1,1,1,1,1,1,1,1,1,1,1,13]
[8,null,1508,2708,"حبيبة محمد شحاته على حسن",30011061800685,"2000-11-06","زخرفة قرار","منقولة","مسلمة","مصرية",14.5,null,14.5,13,null,13,17,null,17,13.5,null,13.5,5,null,5,6,null,6,40,null,40,10,null,10,21,null,21,18,null,18,19,null,19,12,null,12,56,null,56,245,7.5,null,7.5,"راسبة","عربي - انجليزي - رياضيات - فيزياء -  - حاسب - امن صناعي - رسم فني - تخطيط - تكنولوجيا عمليات نظري - تاريخ الفنون - تكنولوجيا الخامات - تكنولوجيا الاجهزة - تكنولوجيا العمليات عملي - تربية دينية","عربي - انجليزي - رياضيات - فيزياء -  - حاسب - امن صناعي - رسم فني","تخطيط - تكنولوجيا عمليات نظري - تاريخ الفنون - تكنولوجيا الخامات - تكنولوجيا الاجهزة - تكنولوجيا العمليات عملي - تربية دينية",null,"عربي","انجليزي","رياضيات","فيزياء","حاسب","امن صناعي","رسم فني","تخطيط","تكنولوجيا عمليات نظري","تاريخ الفنون","تكنولوجيا الخامات","تكنولوجيا الاجهزة","تكنولوجيا العمليات عملي","تربية دينية",null,1,1,1,1,1,1,1,1,1,1,1,1,1,1,13]
[9,null,1509,2709,"حنان سيد احمد مصطفى سلطان",26711271803623,"1967-11-27","زخرفة قرار","منقولة","مسلمة","مصرية",13.5,null,13.5,7.5,null,7.5,13,null,13,12.5,null,12.5,5,null,5,7,null,7,35,null,35,7,null,7,20,null,20,19,null,19,15,null,15,11,null,11,52,null,52,217.5,7,null,7,"راسبة","عربي - انجليزي - رياضيات - فيزياء -  - حاسب - امن صناعي - رسم فني - تخطيط - تكنولوجيا عمليات نظري - تاريخ الفنون - تكنولوجيا الخامات - تكنولوجيا الاجهزة - تكنولوجيا العمليات عملي - تربية دينية","عربي - انجليزي - رياضيات - فيزياء -  - حاسب - امن صناعي - رسم فني","تخطيط - تكنولوجيا عمليات نظري - تاريخ الفنون - تكنولوجيا الخامات - تكنولوجيا الاجهزة - تكنولوجيا العمليات عملي - تربية دينية",null,"عربي","انجليزي","رياضيات","فيزياء","حاسب","امن صناعي","رسم فني","تخطيط","تكنولوجيا عمليات نظري","تاريخ الفنون","تكنولوجيا الخامات","تكنولوجيا الاجهزة","تكنولوجيا العمليات عملي","تربية دينية",null,1,1,1,1,1,1,1,1,1,1,1,1,1,1,13]
[10,null,1510,2710,"دينا احمد فرجاني خير واقد",29808171801466,"1998-08-17","زخرفة قرار","منقولة","مسلمة","مصرية",11.5,null,11.5,13.5,null,13.5,3,null,3,13.5,null,13.5,5,null,5,7,null,7,40,null,40,8,null,8,16,null,16,14,null,14,18,null,18,11,null,11,56,null,56,216.5,7.5,null,7.5,"راسبة","عربي - انجليزي - رياضيات - فيزياء -  - حاسب - امن صناعي - رسم فني - تخطيط - تكنولوجيا عمليات نظري - تاريخ الفنون - تكنولوجيا الخامات - تكنولوجيا الاجهزة - تكنولوجيا العمليات عملي - تربية دينية","عربي - انجليزي - رياضيات - فيزياء -  - حاسب - امن صناعي - رسم فني","تخطيط - تكنولوجيا عمليات نظري - تاريخ الفنون - تكنولوجيا الخامات - تكنولوجيا الاجهزة - تكنولوجيا العمليات عملي - تربية دينية",null,"عربي","انجليزي","رياضيات","فيزياء","حاسب","امن صناعي","رسم فني","تخطيط","تكنولوجيا عمليات نظري","تاريخ الفنون","تكنولوجيا الخامات","تكنولوجيا الاجهزة","تكنولوجيا العمليات عملي","تربية دينية",null,1,1,1,1,1,1,1,1,1,1,1,1,1,1,13]
[11,null,1511,2711,"ريهام منصور محمد حسن شعيشع",29711141800445,"1997-11-14","زخرفة قرار","منقولة","مسلمة","مصرية",11.5,null,11.5,13.5,null,13.5,3,null,3,12,null,12,5,null,5,7,null,7,40,null,40,12,null,12,19,null,19,17,null,17,19,null,19,11,null,11,60,null,60,230,8.5,null,8.5,"راسبة","عربي - انجليزي - رياضيات - فيزياء -  - حاسب - امن صناعي - رسم فني - تخطيط - تكنولوجيا عمليات نظري - تاريخ الفنون - تكنولوجيا الخامات - تكنولوجيا الاجهزة - تكنولوجيا العمليات عملي - تربية دينية","عربي - انجليزي - رياضيات - فيزياء -  - حاسب - امن صناعي - رسم فني","تخطيط - تكنولوجيا عمليات نظري - تاريخ الفنون - تكنولوجيا الخامات - تكنولوجيا الاجهزة - تكنولوجيا العمليات عملي - تربية دينية",null,"عربي","انجليزي","رياضيات","فيزياء","حاسب","امن صناعي","رسم فني","تخطيط","تكنولوجيا عمليات نظري","تاريخ الفنون","تكنولوجيا الخامات","تكنولوجيا الاجهزة","تكنولوجيا العمليات عملي","تربية دينية",null,1,1,1,1,1,1,1,1,1,1,1,1,1,1,13]
[12,null,1512,2712,"سارة عبد القادر ابراهيم على حسن ",29303171800104,"1993-03-17","زخرفة قرار","منقولة","مسلمة","مصرية",13,null,13,14,null,14,3,null,3,14.5,null,14.5,5,null,5,8,null,8,35,null,35,12,null,12,18,null,18,18,null,18,18,null,18,9,null,9,57,null,57,224.5,8,null,8,"راسبة","عربي - انجليزي - رياضيات - فيزياء -  - حاسب - امن صناعي - رسم فني - تخطيط - تكنولوجيا عمليات نظري - تاريخ الفنون - تكنولوجيا الخامات - تكنولوجيا الاجهزة - تكنولوجيا العمليات عملي - تربية دينية","عربي - انجليزي - رياضيات - فيزياء -  - حاسب - امن صناعي - رسم فني","تخطيط - تكنولوجيا عمليات نظري - تاريخ الفنون - تكنولوجيا الخامات - تكنولوجيا الاجهزة - تكنولوجيا العمليات عملي - تربية دينية",null,"عربي","انجليزي","رياضيات","فيزياء","حاسب","امن صناعي","رسم فني","تخطيط","تكنولوجيا عمليات نظري","تاريخ الفنون","تكنولوجيا الخامات","تكنولوجيا الاجهزة","تكنولوجيا العمليات عملي","تربية دينية",null,1,1,1,1,1,1,1,1,1,1,1,1,1,1,13]
[13,null,1513,2713,"سلوى سعيد محمد عبد الحليم\n ",27702091803123,"1998-09-19","زخرفة قرار","منقولة","مسلمة","مصرية",15,null,15,10,null,10,"صفر",null,0,13,null,13,5,null,5,7,null,7,35,null,35,8,null,8,21,null,21,18,null,18,16,null,16,11,null,11,54,null,54,213,8,null,8,"راسبة","عربي - انجليزي - رياضيات - فيزياء -  - حاسب - امن صناعي - رسم فني - تخطيط - تكنولوجيا عمليات نظري - تاريخ الفنون - تكنولوجيا الخامات - تكنولوجيا الاجهزة - تكنولوجيا العمليات عملي - تربية دينية","عربي - انجليزي - رياضيات - فيزياء -  - حاسب - امن صناعي - رسم فني","تخطيط - تكنولوجيا عمليات نظري - تاريخ الفنون - تكنولوجيا الخامات - تكنولوجيا الاجهزة - تكنولوجيا العمليات عملي - تربية دينية",null,"عربي","انجليزي","رياضيات","فيزياء","حاسب","امن صناعي","رسم فني","تخطيط","تكنولوجيا عمليات نظري","تاريخ الفنون","تكنولوجيا الخامات","تكنولوجيا الاجهزة","تكنولوجيا العمليات عملي","تربية دينية",null,1,1,1,1,1,1,1,1,1,1,1,1,1,1,13]
[14,null,1514,2714,"سماء محمد عبده ابراهيم زعتر",29804091800781,"1998-04-09","زخرفة قرار","منقولة","مسلمة","مصرية",13.5,null,13.5,12,null,12,10,null,10,14,null,14,5,null,5,7,null,7,35,null,35,8,null,8,16,null,16,16,null,16,17,null,17,8,null,8,52,null,52,213.5,8,null,8,"راسبة","عربي - انجليزي - رياضيات - فيزياء -  - حاسب - امن صناعي - رسم فني - تخطيط - تكنولوجيا عمليات نظري - تاريخ الفنون - تكنولوجيا الخامات - تكنولوجيا الاجهزة - تكنولوجيا العمليات عملي - تربية دينية","عربي - انجليزي - رياضيات - فيزياء -  - حاسب - امن صناعي - رسم فني","تخطيط - تكنولوجيا عمليات نظري - تاريخ الفنون - تكنولوجيا الخامات - تكنولوجيا الاجهزة - تكنولوجيا العمليات عملي - تربية دينية",null,"عربي","انجليزي","رياضيات","فيزياء","حاسب","امن صناعي","رسم فني","تخطيط","تكنولوجيا عمليات نظري","تاريخ الفنون","تكنولوجيا الخامات","تكنولوجيا الاجهزة","تكنولوجيا العمليات عملي","تربية دينية",null,1,1,1,1,1,1,1,1,1,1,1,1,1,1,13]
[15,null,1515,2715,"سهام رضا احمد محمد مصطفى",29402160202866,"1994-02-16","زخرفة قرار","منقولة","مسلمة","مصرية",14.5,null,14.5,16.5,null,16.5,8,null,8,14.5,null,14.5,5,null,5,8,null,8,35,null,35,8,null,8,16,null,16,18,null,18,19,null,19,8,null,8,53,null,53,223.5,7.5,null,7.5,"راسبة","عربي - انجليزي - رياضيات - فيزياء -  - حاسب - امن صناعي - رسم فني - تخطيط - تكنولوجيا عمليات نظري - تاريخ الفنون - تكنولوجيا الخامات - تكنولوجيا الاجهزة - تكنولوجيا العمليات عملي - تربية دينية","عربي - انجليزي - رياضيات - فيزياء -  - حاسب - امن صناعي - رسم فني","تخطيط - تكنولوجيا عمليات نظري - تاريخ الفنون - تكنولوجيا الخامات - تكنولوجيا الاجهزة - تكنولوجيا العمليات عملي - تربية دينية",null,"عربي","انجليزي","رياضيات","فيزياء","حاسب","امن صناعي","رسم فني","تخطيط","تكنولوجيا عمليات نظري","تاريخ الفنون","تكنولوجيا الخامات","تكنولوجيا الاجهزة","تكنولوجيا العمليات عملي","تربية دينية",null,1,1,1,1,1,1,1,1,1,1,1,1,1,1,13]
[16,null,1516,2716,"سومه عبد الغني فتحي عبد الغني",29002041802903,"1990-02-04","زخرفة قرار","منقولة","مسلمة","مصرية",9.5,null,9.5,8,null,8,6,null,6,15,null,15,7,null,7,7,null,7,35,null,35,9,null,9,16,null,16,18,null,18,17,null,17,9,null,9,53,null,53,209.5,6,null,6,"راسبة","عربي - انجليزي - رياضيات - فيزياء -  - حاسب - امن صناعي - رسم فني - تخطيط - تكنولوجيا عمليات نظري - تاريخ الفنون - تكنولوجيا الخامات - تكنولوجيا الاجهزة - تكنولوجيا العمليات عملي - تربية دينية","عربي - انجليزي - رياضيات - فيزياء -  - حاسب - امن صناعي - رسم فني","تخطيط - تكنولوجيا عمليات نظري - تاريخ الفنون - تكنولوجيا الخامات - تكنولوجيا الاجهزة - تكنولوجيا العمليات عملي - تربية دينية",null,"عربي","انجليزي","رياضيات","فيزياء","حاسب","امن صناعي","رسم فني","تخطيط","تكنولوجيا عمليات نظري","تاريخ الفنون","تكنولوجيا الخامات","تكنولوجيا الاجهزة","تكنولوجيا العمليات عملي","تربية دينية",null,1,1,1,1,1,1,1,1,1,1,1,1,1,1,13]
[17,null,1517,2717,"شرين عادل محمد احمد حسن",29905091800308,"1999-05-09","زخرفة قرار","منقولة","مسلمة","مصرية",10,null,10,14.5,null,14.5,5,null,5,13,null,13,7,null,7,7,null,7,35,null,35,9,null,9,15,null,15,14,null,14,16,null,16,8,null,8,52,null,52,205.5,7.5,null,7.5,"راسبة","عربي - انجليزي - رياضيات - فيزياء -  - حاسب - امن صناعي - رسم فني - تخطيط - تكنولوجيا عمليات نظري - تاريخ الفنون - تكنولوجيا الخامات - تكنولوجيا الاجهزة - تكنولوجيا العمليات عملي - تربية دينية","عربي - انجليزي - رياضيات - فيزياء -  - حاسب - امن صناعي - رسم فني","تخطيط - تكنولوجيا عمليات نظري - تاريخ الفنون - تكنولوجيا الخامات - تكنولوجيا الاجهزة - تكنولوجيا العمليات عملي - تربية دينية",null,"عربي","انجليزي","رياضيات","فيزياء","حاسب","امن صناعي","رسم فني","تخطيط","تكنولوجيا عمليات نظري","تاريخ الفنون","تكنولوجيا الخامات","تكنولوجيا الاجهزة","تكنولوجيا العمليات عملي","تربية دينية",null,1,1,1,1,1,1,1,1,1,1,1,1,1,1,13]
[18,null,1518,2718,"شيماء جمال سعيد ابراهيم",29905011810723,"1999-05-01","زخرفة قرار","منقولة","مسلمة","مصرية","غ",null,0,"غ",null,0,"غ",null,0,"غ",null,0,7,null,7,"غ",null,0,"غ",null,0,"غ",null,{"$f":"SUM(AG22:AH22)","v":0},"غ",null,0,"غ",null,0,"غ",null,{"$f":"SUM(AP22:AQ22)","v":0},"غ",null,0,"غ",null,0,7,"غـ",null,0,"راسبة","عربي - انجليزي - رياضيات - فيزياء -  - حاسب - امن صناعي - رسم فني - تخطيط - تكنولوجيا عمليات نظري - تاريخ الفنون - تكنولوجيا الخامات - تكنولوجيا الاجهزة - تكنولوجيا العمليات عملي - تربية دينية","عربي - انجليزي - رياضيات - فيزياء -  - حاسب - امن صناعي - رسم فني","تخطيط - تكنولوجيا عمليات نظري - تاريخ الفنون - تكنولوجيا الخامات - تكنولوجيا الاجهزة - تكنولوجيا العمليات عملي - تربية دينية",null,"عربي","انجليزي","رياضيات","فيزياء","حاسب","امن صناعي","رسم فني","تخطيط","تكنولوجيا عمليات نظري","تاريخ الفنون","تكنولوجيا الخامات","تكنولوجيا الاجهزة","تكنولوجيا العمليات عملي","تربية دينية",null,1,1,1,1,1,1,1,1,1,1,1,1,1,1,13]
[19,null,1519,2719,"علياء ابو الحسن محمد علي عطية",29809191801981,"1998-09-19","زخرفة قرار","منقولة","مسلمة","مصرية",14,null,14,14,null,14,5,null,5,13,null,13,5,null,5,7,null,7,40,null,40,11,null,11,18,null,18,14,null,14,18,null,18,12,null,12,52,null,52,223,8,null,8,"راسبة","عربي - انجليزي - رياضيات - فيزياء -  - حاسب - امن صناعي - رسم فني - تخطيط - تكنولوجيا عمليات نظري - تاريخ الفنون - تكنولوجيا الخامات - تكنولوجيا الاجهزة - تكنولوجيا العمليات عملي - تربية دينية","عربي - انجليزي - رياضيات - فيزياء -  - حاسب - امن صناعي - رسم فني","تخطيط - تكنولوجيا عمليات نظري - تاريخ الفنون - تكنولوجيا الخامات - تكنولوجيا الاجهزة - تكنولوجيا العمليات عملي - تربية دينية",null,"عربي","انجليزي","رياضيات","فيزياء","حاسب","امن صناعي","رسم فني","تخطيط","تكنولوجيا عمليات نظري","تاريخ الفنون","تكنولوجيا الخامات","تكنولوجيا الاجهزة","تكنولوجيا العمليات عملي","تربية دينية",null,1,1,1,1,1,1,1,1,1,1,1,1,1,1,13]
[20,null,1520,2720,"غادة حسين كامل حسين",29301011841405,"1993-01-01","زخرفة قرار","منقولة","مسلمة","مصرية",15,null,15,14,null,14,5,null,5,15.5,null,15.5,5,null,5,7,null,7,40,null,40,10,null,10,18,null,18,18,null,18,19,null,19,12,null,12,53,null,53,231.5,8,null,8,"راسبة","عربي - انجليزي - رياضيات - فيزياء -  - حاسب - امن صناعي - رسم فني - تخطيط - تكنولوجيا عمليات نظري - تاريخ الفنون - تكنولوجيا الخامات - تكنولوجيا الاجهزة - تكنولوجيا العمليات عملي - تربية دينية","عربي - انجليزي - رياضيات - فيزياء -  - حاسب - امن صناعي - رسم فني","تخطيط - تكنولوجيا عمليات نظري - تاريخ الفنون - تكنولوجيا الخامات - تكنولوجيا الاجهزة - تكنولوجيا العمليات عملي - تربية دينية",null,"عربي","انجليزي","رياضيات","فيزياء","حاسب","امن صناعي","رسم فني","تخطيط","تكنولوجيا عمليات نظري","تاريخ الفنون","تكنولوجيا الخامات","تكنولوجيا الاجهزة","تكنولوجيا العمليات عملي","تربية دينية",null,1,1,1,1,1,1,1,1,1,1,1,1,1,1,13]
[21,null,1521,2721,"غادة رجب فؤاد عبد المقصود بوادي",29808101803381,"1998-08-10","زخرفة قرار","منقولة","مسلمة","مصرية",13,null,13,13,null,13,6,null,6,16,null,16,5,null,5,7,null,7,40,null,40,10,null,10,15,null,15,19,null,19,19,null,19,12,null,12,53,null,53,228,7.5,null,7.5,"راسبة","عربي - انجليزي - رياضيات - فيزياء -  - حاسب - امن صناعي - رسم فني - تخطيط - تكنولوجيا عمليات نظري - تاريخ الفنون - تكنولوجيا الخامات - تكنولوجيا الاجهزة - تكنولوجيا العمليات عملي - تربية دينية","عربي - انجليزي - رياضيات - فيزياء -  - حاسب - امن صناعي - رسم فني","تخطيط - تكنولوجيا عمليات نظري - تاريخ الفنون - تكنولوجيا الخامات - تكنولوجيا الاجهزة - تكنولوجيا العمليات عملي - تربية دينية",null,"عربي","انجليزي","رياضيات","فيزياء","حاسب","امن صناعي","رسم فني","تخطيط","تكنولوجيا عمليات نظري","تاريخ الفنون","تكنولوجيا الخامات","تكنولوجيا الاجهزة","تكنولوجيا العمليات عملي","تربية دينية",null,1,1,1,1,1,1,1,1,1,1,1,1,1,1,13]
[22,null,1522,2722,"منال سيد احمد ابو الحمد كبير ",29810011809121,"1998-10-01","زخرفة قرار","منقولة","مسلمة","مصرية",13.5,null,13.5,13.5,null,13.5,8,null,8,16,null,16,6,null,6,8,null,8,40,null,40,10,null,10,18,null,18,19,null,19,19,null,19,12,null,12,56,null,56,239,5.5,null,5.5,"راسبة","عربي - انجليزي - رياضيات - فيزياء -  - حاسب - امن صناعي - رسم فني - تخطيط - تكنولوجيا عمليات نظري - تاريخ الفنون - تكنولوجيا الخامات - تكنولوجيا الاجهزة - تكنولوجيا العمليات عملي - تربية دينية","عربي - انجليزي - رياضيات - فيزياء -  - حاسب - امن صناعي - رسم فني","تخطيط - تكنولوجيا عمليات نظري - تاريخ الفنون - تكنولوجيا الخامات - تكنولوجيا الاجهزة - تكنولوجيا العمليات عملي - تربية دينية",null,"عربي","انجليزي","رياضيات","فيزياء","حاسب","امن صناعي","رسم فني","تخطيط","تكنولوجيا عمليات نظري","تاريخ الفنون","تكنولوجيا الخامات","تكنولوجيا الاجهزة","تكنولوجيا العمليات عملي","تربية دينية",null,1,1,1,1,1,1,1,1,1,1,1,1,1,1,13]
[23,null,1523,2723,"ناديه محمد احمد عامر احمد",29507032601266,"1995-07-03","زخرفة قرار","منقولة","مسلمة","مصرية",8,null,8,14.5,null,14.5,3,null,3,17,null,17,5,null,5,9,null,9,40,null,40,10,null,10,16,null,16,19,null,19,18,null,18,11,null,11,53,null,53,223.5,6.5,null,6.5,"راسبة","عربي - انجليزي - رياضيات - فيزياء -  - حاسب - امن صناعي - رسم فني - تخطيط - تكنولوجيا عمليات نظري - تاريخ الفنون - تكنولوجيا الخامات - تكنولوجيا الاجهزة - تكنولوجيا العمليات عملي - تربية دينية","عربي - انجليزي - رياضيات - فيزياء -  - حاسب - امن صناعي - رسم فني","تخطيط - تكنولوجيا عمليات نظري - تاريخ الفنون - تكنولوجيا الخامات - تكنولوجيا الاجهزة - تكنولوجيا العمليات عملي - تربية دينية",null,"عربي","انجليزي","رياضيات","فيزياء","حاسب","امن صناعي","رسم فني","تخطيط","تكنولوجيا عمليات نظري","تاريخ الفنون","تكنولوجيا الخامات","تكنولوجيا الاجهزة","تكنولوجيا العمليات عملي","تربية دينية",null,1,1,1,1,1,1,1,1,1,1,1,1,1,1,13]
[24,null,1524,2724,"ندى السيد عبد السلام البنا ",29803011816503,"1998-03-01","زخرفة قرار","منقولة","مسلمة","مصرية",12.5,null,12.5,15,null,15,6,null,6,16.5,null,16.5,5,null,5,9,null,9,40,null,40,10,null,10,15,null,15,19,null,19,19,null,19,9,null,9,54,null,54,230,8,null,8,"راسبة","عربي - انجليزي - رياضيات - فيزياء -  - حاسب - امن صناعي - رسم فني - تخطيط - تكنولوجيا عمليات نظري - تاريخ الفنون - تكنولوجيا الخامات - تكنولوجيا الاجهزة - تكنولوجيا العمليات عملي - تربية دينية","عربي - انجليزي - رياضيات - فيزياء -  - حاسب - امن صناعي - رسم فني","تخطيط - تكنولوجيا عمليات نظري - تاريخ الفنون - تكنولوجيا الخامات - تكنولوجيا الاجهزة - تكنولوجيا العمليات عملي - تربية دينية",null,"عربي","انجليزي","رياضيات","فيزياء","حاسب","امن صناعي","رسم فني","تخطيط","تكنولوجيا عمليات نظري","تاريخ الفنون","تكنولوجيا الخامات","تكنولوجيا الاجهزة","تكنولوجيا العمليات عملي","تربية دينية",null,1,1,1,1,1,1,1,1,1,1,1,1,1,1,13]
[25,null,1525,2725,"ندى مجدي سعد مؤنس",29601011827601,"1996-01-01","زخرفة قرار","منقولة","مسلمة","مصرية",13,null,13,14.5,null,14.5,3,null,3,16.5,null,16.5,5,null,5,9,null,9,35,null,35,10,null,10,16,null,16,18,null,18,19,null,19,10,null,10,54,null,54,223,6,null,6,"راسبة","عربي - انجليزي - رياضيات - فيزياء -  - حاسب - امن صناعي - رسم فني - تخطيط - تكنولوجيا عمليات نظري - تاريخ الفنون - تكنولوجيا الخامات - تكنولوجيا الاجهزة - تكنولوجيا العمليات عملي - تربية دينية","عربي - انجليزي - رياضيات - فيزياء -  - حاسب - امن صناعي - رسم فني","تخطيط - تكنولوجيا عمليات نظري - تاريخ الفنون - تكنولوجيا الخامات - تكنولوجيا الاجهزة - تكنولوجيا العمليات عملي - تربية دينية",null,"عربي","انجليزي","رياضيات","فيزياء","حاسب","امن صناعي","رسم فني","تخطيط","تكنولوجيا عمليات نظري","تاريخ الفنون","تكنولوجيا الخامات","تكنولوجيا الاجهزة","تكنولوجيا العمليات عملي","تربية دينية",null,1,1,1,1,1,1,1,1,1,1,1,1,1,1,13]
[26,null,1526,2726,"نهى محمد فؤاد قطب زلهف",29807231801324,"1998-07-23","زخرفة قرار","منقولة","مسلمة","مصرية",11,null,11,14,null,14,4,null,4,13.5,null,13.5,5,null,5,9,null,9,40,null,40,10,null,10,16,null,16,19,null,19,19,null,19,9,null,9,58,null,58,227.5,7.5,null,7.5,"راسبة","عربي - انجليزي - رياضيات - فيزياء -  - حاسب - امن صناعي - رسم فني - تخطيط - تكنولوجيا عمليات نظري - تاريخ الفنون - تكنولوجيا الخامات - تكنولوجيا الاجهزة - تكنولوجيا العمليات عملي - تربية دينية","عربي - انجليزي - رياضيات - فيزياء -  - حاسب - امن صناعي - رسم فني","تخطيط - تكنولوجيا عمليات نظري - تاريخ الفنون - تكنولوجيا الخامات - تكنولوجيا الاجهزة - تكنولوجيا العمليات عملي - تربية دينية",null,"عربي","انجليزي","رياضيات","فيزياء","حاسب","امن صناعي","رسم فني","تخطيط","تكنولوجيا عمليات نظري","تاريخ الفنون","تكنولوجيا الخامات","تكنولوجيا الاجهزة","تكنولوجيا العمليات عملي","تربية دينية",null,1,1,1,1,1,1,1,1,1,1,1,1,1,1,13]
[27,null,1527,2727,"هبة محمود سعد الدين محمود النفراوي",29806201803741,"1998-06-20","زخرفة قرار","منقولة","مسلمة","مصرية",11,null,11,14.5,null,14.5,5,null,5,15,null,15,5,null,5,9,null,9,35,null,35,10,null,10,16,null,16,19,null,19,19,null,19,8,null,8,56,null,56,222.5,5.5,null,5.5,"راسبة","عربي - انجليزي - رياضيات - فيزياء -  - حاسب - امن صناعي - رسم فني - تخطيط - تكنولوجيا عمليات نظري - تاريخ الفنون - تكنولوجيا الخامات - تكنولوجيا الاجهزة - تكنولوجيا العمليات عملي - تربية دينية","عربي - انجليزي - رياضيات - فيزياء -  - حاسب - امن صناعي - رسم فني","تخطيط - تكنولوجيا عمليات نظري - تاريخ الفنون - تكنولوجيا الخامات - تكنولوجيا الاجهزة - تكنولوجيا العمليات عملي - تربية دينية",null,"عربي","انجليزي","رياضيات","فيزياء","حاسب","امن صناعي","رسم فني","تخطيط","تكنولوجيا عمليات نظري","تاريخ الفنون","تكنولوجيا الخامات","تكنولوجيا الاجهزة","تكنولوجيا العمليات عملي","تربية دينية",null,1,1,1,1,1,1,1,1,1,1,1,1,1,1,13]
[28,null,1528,2728,"وفاء محمود مصطفى على السيد",30012241801708,"2000-12-24","زخرفة قرار","منقولة","مسلمة","مصرية",12.5,null,12.5,12.5,null,12.5,5,null,5,15,null,15,7,null,7,9,null,9,35,null,35,10,null,10,15,null,15,19,null,19,19,null,19,10,null,10,55,null,55,224,7.5,null,7.5,"راسبة","عربي - انجليزي - رياضيات - فيزياء -  - حاسب - امن صناعي - رسم فني - تخطيط - تكنولوجيا عمليات نظري - تاريخ الفنون - تكنولوجيا الخامات - تكنولوجيا الاجهزة - تكنولوجيا العمليات عملي - تربية دينية","عربي - انجليزي - رياضيات - فيزياء -  - حاسب - امن صناعي - رسم فني","تخطيط - تكنولوجيا عمليات نظري - تاريخ الفنون - تكنولوجيا الخامات - تكنولوجيا الاجهزة - تكنولوجيا العمليات عملي - تربية دينية",null,"عربي","انجليزي","رياضيات","فيزياء","حاسب","امن صناعي","رسم فني","تخطيط","تكنولوجيا عمليات نظري","تاريخ الفنون","تكنولوجيا الخامات","تكنولوجيا الاجهزة","تكنولوجيا العمليات عملي","تربية دينية",null,1,1,1,1,1,1,1,1,1,1,1,1,1,1,13]
[29,null,1529,2729,"ياسمين محمد حسين فياله",30108081802726,"2001-08-08","زخرفة قرار","منقولة","مسلمة","مصرية",13.5,null,13.5,15,null,15,5,null,5,15,null,15,7,null,7,9,null,9,40,null,40,10,null,10,16,null,16,19,null,19,19,null,19,11,null,11,58,null,58,237.5,7.5,null,7.5,"راسبة","عربي - انجليزي - رياضيات - فيزياء -  - حاسب - امن صناعي - رسم فني - تخطيط - تكنولوجيا عمليات نظري - تاريخ الفنون - تكنولوجيا الخامات - تكنولوجيا الاجهزة - تكنولوجيا العمليات عملي - تربية دينية","عربي - انجليزي - رياضيات - فيزياء -  - حاسب - امن صناعي - رسم فني","تخطيط - تكنولوجيا عمليات نظري - تاريخ الفنون - تكنولوجيا الخامات - تكنولوجيا الاجهزة - تكنولوجيا العمليات عملي - تربية دينية",null,"عربي","انجليزي","رياضيات","فيزياء","حاسب","امن صناعي","رسم فني","تخطيط","تكنولوجيا عمليات نظري","تاريخ الفنون","تكنولوجيا الخامات","تكنولوجيا الاجهزة","تكنولوجيا العمليات عملي","تربية دينية",null,1,1,1,1,1,1,1,1,1,1,1,1,1,1,13]
[null,null,null,null,null,null,null,null,null,"حاضر",null,{"$f":"29-L35","v":28},null,null,{"$f":"29-O35","v":28},null,null,{"$f":"29-R35","v":28},null,null,{"$f":"29-U35","v":28},null,null,{"$f":"29-X35","v":29},null,null,{"$f":"29-AA35","v":28},null,null,{"$f":"29-AD35","v":28},null,null,{"$f":"29-AG35","v":28},null,null,{"$f":"29-AJ35","v":28},null,null,{"$f":"29-AM35","v":28},null,null,{"$f":"29-AP35","v":28},null,null,{"$f":"29-AS35","v":28},null,null,{"$f":"29-AV35","v":28},null,null,null,{"$f":"29-AZ35","v":28}]
[null,null,null,null,null,null,null,null,null,"غياب",null,{"$f":"COUNTIF(L5:L33,\"=غ\")","v":1},null,null,{"$f":"COUNTIF(O5:O33,\"=غ\")","v":1},null,null,{"$f":"COUNTIF(R5:R33,\"=غ\")","v":1},null,null,{"$f":"COUNTIF(U5:U33,\"=غ\")","v":1},null,null,{"$f":"COUNTIF(X5:X33,\"=غ\")","v":0},null,null,{"$f":"COUNTIF(AA5:AA33,\"=غ\")","v":1},null,null,{"$f":"COUNTIF(AD5:AD33,\"=غ\")","v":1},null,null,{"$f":"COUNTIF(AG5:AG33,\"=غ\")","v":1},null,null,{"$f":"COUNTIF(AJ5:AJ33,\"=غ\")","v":1},null,null,{"$f":"COUNTIF(AM5:AM33,\"=غ\")","v":1},null,null,{"$f":"COUNTIF(AP5:AP33,\"=غ\")","v":1},null,null,{"$f":"COUNTIF(AS5:AS33,\"=غ\")","v":1},null,null,{"$f":"COUNTIF(AV5:AV33,\"=غ\")","v":1},null,null,null,{"$f":"COUNTIF(AZ5:AZ33,\"=غ\")","v":1}]
[null,null,null,null,null,null,null,null,null,"ناجح",null,{"$f":"COUNTIF(L5:L33,\">=12.5\")","v":20},null,null,{"$f":"COUNTIF(O5:O33,\">=10\")","v":22},null,null,{"$f":"COUNTIF(R5:R33,\">=12.5\")","v":7},null,null,{"$f":"COUNTIF(U5:U33,\">=10\")","v":28},null,null,{"$f":"COUNTIF(X5:X33,\">=5\")","v":29},null,null,{"$f":"COUNTIF(AA5:AA33,\">=5\")","v":28},null,null,{"$f":"COUNTIF(AD5:AD33,\">=25\")","v":28},null,null,{"$f":"COUNTIF(AG5:AG33,\">=10\")","v":18},null,null,{"$f":"COUNTIF(AJ5:AJ33,\">=15\")","v":28},null,null,{"$f":"COUNTIF(AM5:AM33,\">=12.5\")","v":28},null,null,{"$f":"COUNTIF(AP5:AP33,\">=12.5\")","v":28},null,null,{"$f":"COUNTIF(AS5:AS33,\">=10\")","v":20},null,null,{"$f":"COUNTIF(AV5:AV33,\">=35\")","v":28},null,null,null,{"$f":"COUNTIF(AZ5:AZ33,\">=5\")","v":28}]
[null,null,null,null,null,null,null,null,null,"راسب",null,{"$f":"COUNTIF(L5:L33,\"<12.5\")","v":8},null,null,{"$f":"COUNTIF(O5:O33,\"<10\")","v":6},null,null,{"$f":"COUNTIF(R5:R33,\"<12.5\")","v":20},null,null,{"$f":"COUNTIF(U5:U33,\"<10\")","v":0},null,null,{"$f":"COUNTIF(X5:X33,\"<5\")","v":0},null,null,{"$f":"COUNTIF(AA5:AA33,\"<5\")","v":0},null,null,{"$f":"COUNTIF(AD5:AD33,\"<25\")","v":0},null,null,{"$f":"COUNTIF(AG5:AG33,\"<10\")","v":10},null,null,{"$f":"COUNTIF(AJ5:AJ33,\"<15\")","v":0},null,null,{"$f":"COUNTIF(AM5:AM33,\"<12.5\")","v":0},null,null,{"$f":"COUNTIF(AP5:AP33,\"<12.5\")","v":0},null,null,{"$f":"COUNTIF(AS5:AS33,\"<10\")","v":8},null,null,{"$f":"COUNTIF(AV5:AV33,\"<35\")","v":0},null,null,null,{"$f":"COUNTIF(AZ5:AZ33,\"<5\")","v":0}]
[null,null,null,null,null,null,null,null,null,"النسبة",null,{"$f":"L36/L34%","v":71.428571428571416},null,null,{"$f":"O36/O34%","v":78.571428571428569},null,null,{"$f":"R36/R34%","v":24.999999999999996},null,null,{"$f":"U36/U34%","v":99.999999999999986},null,null,{"$f":"X36/X34%","v":100},null,null,{"$f":"AA36/AA34%","v":99.999999999999986},null,null,{"$f":"AD36/AD34%","v":99.999999999999986},null,null,{"$f":"AG36/AG34%","v":64.285714285714278},null,null,{"$f":"AJ36/AJ34%","v":99.999999999999986},null,null,{"$f":"AM36/AM34%","v":99.999999999999986},null,null,{"$f":"AP36/AP34%","v":99.999999999999986},null,null,{"$f":"AS36/AS34%","v":71.428571428571416},null,null,{"$f":"AV36/AV34%","v":99.999999999999986},null,null,null,{"$f":"AZ36/29%","v":96.551724137931046}]

{"sheet":"شيت طباعة","index":2,"n_rows":34,"n_cols":39,"rows_kept":34,"cut":false,"hidden":false,"merged":[[0,37,2,37],[0,38,2,38],[0,35,0,36],[0,26,0,27],[0,28,0,29],[0,30,0,31],[0,32,0,33],[0,16,0,17],[0,18,0,19],[0,20,0,21],[0,22,0,23],[0,24,0,25],[0,0,1,7],[0,14,0,15],[0,8,0,9],[0,10,0,11],[0,12,0,13]]}
["م",null,null,null,null,null,null,null,"لغة عربية",null,"لغة إنجليزية",null,"رياضيات",null,"فيزياء",null,"حاسب الي",null,"امن صناعي",null,"رسم فني",null,"تخطيط",null,"تك. العمليات نظري",null,"تك. الخامات نظري",null,"تك. الاجهزة",null,"تاريخ الفنون",null,"تك. العمليات ع",null,null,"التربية الدينية",null,"النتيجة","مواد الرسوب"]
[null,null,null,null,null,null,null,null,"آخر العام","المجموع","آخر العام","المجموع","آخر العام","المجموع","آخر العام","المجموع","آخر العام","المجموع","آخر العام","المجموع","آخر العام","المجموع","آخر العام","المجموع","آخر العام","المجموع","آخر العام","المجموع","آخر العام","المجموع","آخر العام","المجموع","آخر العام","المجموع","المجموع الكلي","آخر العام","المجموع"]
["م","رقم الجلوس","الاســــــــــــــــم","الرقم القومي","الصناعة","حالة القيد","الديانة ","الجنسية",25,50,20,40,25,50,20,40,10,20,10,20,50,100,20,40,30,60,25,50,25,50,20,40,70,140,700,10,20]
[null,null,null,null,null,null,null,null,6.25,25,5,20,6.5,25,5,20,2.5,10,2.5,10,12.5,50,5,20,7.5,30,6.5,25,6.5,25,5,20,17.5,70,350,2.5,10]
[1,{"$f":"'الصف الثاني'!D5","v":2701},{"$f":"'الصف الثاني'!E5","v":"اسراء ابراهيم نبيل على محمد عمر"},{"$f":"'الصف الثاني'!F5","v":29909281800504},{"$f":"'الصف الثاني'!H5","v":"زخرفة قرار"},{"$f":"'الصف الثاني'!I20","v":"منقولة"},{"$f":"'الصف الثاني'!J20","v":"مسلمة"},{"$f":"'الصف الثاني'!K20","v":"مصرية"},{"$f":"'الصف الثاني'!M5","v":0},{"$f":"'الصف الثاني'!N5","v":14},{"$f":"'الصف الثاني'!P5","v":0},{"$f":"'الصف الثاني'!Q5","v":9},{"$f":"'الصف الثاني'!S5","v":0},{"$f":"'الصف الثاني'!T5","v":3},{"$f":"'الصف الثاني'!V5","v":0},{"$f":"'الصف الثاني'!W5","v":11.5},{"$f":"'الصف الثاني'!Y5","v":0},{"$f":"'الصف الثاني'!Z5","v":5},{"$f":"'الصف الثاني'!AB5","v":0},{"$f":"'الصف الثاني'!AC5","v":5},{"$f":"'الصف الثاني'!AE5","v":0},{"$f":"'الصف الثاني'!AF5","v":40},{"$f":"'الصف الثاني'!AH5","v":0},{"$f":"'الصف الثاني'!AI5","v":5},{"$f":"'الصف الثاني'!AK5","v":0},{"$f":"'الصف الثاني'!AL5","v":27},{"$f":"'الصف الثاني'!AN5","v":0},{"$f":"'الصف الثاني'!AO5","v":13},{"$f":"'الصف الثاني'!AQ5","v":0},{"$f":"'الصف الثاني'!AR5","v":17},{"$f":"'الصف الثاني'!AT5","v":0},{"$f":"'الصف الثاني'!AU5","v":13},{"$f":"'الصف الثاني'!AW5","v":0},{"$f":"'الصف الثاني'!AX5","v":58},{"$f":"'الصف الثاني'!AY5","v":220.5},{"$f":"'الصف الثاني'!BA5","v":0},{"$f":"'الصف الثاني'!BB5","v":7},{"$f":"'الصف الثاني'!BC5","v":"راسبة"},{"$f":"'الصف الثاني'!BD5","v":"عربي - انجليزي - رياضيات - فيزياء -  - حاسب - امن صناعي - رسم فني - تخطيط - تكنولوجيا عمليات نظري - تاريخ الفنون - تكنولوجيا الخامات - تكنولوجيا الاجهزة - تكنولوجيا العمليات عملي - تربية دينية"}]
[2,{"$f":"'الصف الثاني'!D6","v":2702},{"$f":"'الصف الثاني'!E6","v":"اسراء حسن فؤاد موسى محمد غراب"},{"$f":"'الصف الثاني'!F6","v":29612051801843},{"$f":"'الصف الثاني'!H6","v":"زخرفة قرار"},{"$f":"'الصف الثاني'!I21","v":"منقولة"},{"$f":"'الصف الثاني'!J21","v":"مسلمة"},{"$f":"'الصف الثاني'!K21","v":"مصرية"},{"$f":"'الصف الثاني'!M6","v":0},{"$f":"'الصف الثاني'!N6","v":16.5},{"$f":"'الصف الثاني'!P6","v":0},{"$f":"'الصف الثاني'!Q6","v":10},{"$f":"'الصف الثاني'!S6","v":0},{"$f":"'الصف الثاني'!T6","v":9.5},{"$f":"'الصف الثاني'!V6","v":0},{"$f":"'الصف الثاني'!W6","v":10},{"$f":"'الصف الثاني'!Y6","v":0},{"$f":"'الصف الثاني'!Z6","v":5},{"$f":"'الصف الثاني'!AB6","v":0},{"$f":"'الصف الثاني'!AC6","v":7},{"$f":"'الصف الثاني'!AE6","v":0},{"$f":"'الصف الثاني'!AF6","v":40},{"$f":"'الصف الثاني'!AH6","v":0},{"$f":"'الصف الثاني'!AI6","v":3},{"$f":"'الصف الثاني'!AK6","v":0},{"$f":"'الصف الثاني'!AL6","v":26},{"$f":"'الصف الثاني'!AN6","v":0},{"$f":"'الصف الثاني'!AO6","v":17},{"$f":"'الصف الثاني'!AQ6","v":0},{"$f":"'الصف الثاني'!AR6","v":17},{"$f":"'الصف الثاني'!AT6","v":0},{"$f":"'الصف الثاني'!AU6","v":12},{"$f":"'الصف الثاني'!AW6","v":0},{"$f":"'الصف الثاني'!AX6","v":55},{"$f":"'الصف الثاني'!AY6","v":228},{"$f":"'الصف الثاني'!BA6","v":0},{"$f":"'الصف الثاني'!BB6","v":6.5},{"$f":"'الصف الثاني'!BC6","v":"راسبة"},{"$f":"'الصف الثاني'!BD6","v":"عربي - انجليزي - رياضيات - فيزياء -  - حاسب - امن صناعي - رسم فني - تخطيط - تكنولوجيا عمليات نظري - تاريخ الفنون - تكنولوجيا الخامات - تكنولوجيا الاجهزة - تكنولوجيا العمليات عملي - تربية دينية"}]
[3,{"$f":"'الصف الثاني'!D7","v":2703},{"$f":"'الصف الثاني'!E7","v":"اسراء حسين بسيوني سلامة "},{"$f":"'الصف الثاني'!F7","v":30101151802201},{"$f":"'الصف الثاني'!H7","v":"زخرفة قرار"},{"$f":"'الصف الثاني'!I22","v":"منقولة"},{"$f":"'الصف الثاني'!J22","v":"مسلمة"},{"$f":"'الصف الثاني'!K22","v":"مصرية"},{"$f":"'الصف الثاني'!M7","v":0},{"$f":"'الصف الثاني'!N7","v":14.5},{"$f":"'الصف الثاني'!P7","v":0},{"$f":"'الصف الثاني'!Q7","v":9},{"$f":"'الصف الثاني'!S7","v":0},{"$f":"'الصف الثاني'!T7","v":19.5},{"$f":"'الصف الثاني'!V7","v":0},{"$f":"'الصف الثاني'!W7","v":15},{"$f":"'الصف الثاني'!Y7","v":0},{"$f":"'الصف الثاني'!Z7","v":5},{"$f":"'الصف الثاني'!AB7","v":0},{"$f":"'الصف الثاني'!AC7","v":7},{"$f":"'الصف الثاني'!AE7","v":0},{"$f":"'الصف الثاني'!AF7","v":40},{"$f":"'الصف الثاني'!AH7","v":0},{"$f":"'الصف الثاني'!AI7","v":10},{"$f":"'الصف الثاني'!AK7","v":0},{"$f":"'الصف الثاني'!AL7","v":25},{"$f":"'الصف الثاني'!AN7","v":0},{"$f":"'الصف الثاني'!AO7","v":19},{"$f":"'الصف الثاني'!AQ7","v":0},{"$f":"'الصف الثاني'!AR7","v":17},{"$f":"'الصف الثاني'!AT7","v":0},{"$f":"'الصف الثاني'!AU7","v":11},{"$f":"'الصف الثاني'!AW7","v":0},{"$f":"'الصف الثاني'!AX7","v":56},{"$f":"'الصف الثاني'!AY7","v":248},{"$f":"'الصف الثاني'!BA7","v":0},{"$f":"'الصف الثاني'!BB7","v":6.5},{"$f":"'الصف الثاني'!BC7","v":"راسبة"},{"$f":"'الصف الثاني'!BD7","v":"عربي - انجليزي - رياضيات - فيزياء -  - حاسب - امن صناعي - رسم فني - تخطيط - تكنولوجيا عمليات نظري - تاريخ الفنون - تكنولوجيا الخامات - تكنولوجيا الاجهزة - تكنولوجيا العمليات عملي - تربية دينية"}]
[4,{"$f":"'الصف الثاني'!D8","v":2704},{"$f":"'الصف الثاني'!E8","v":"اسراء محمد مسعود السيد ابراهيم"},{"$f":"'الصف الثاني'!F8","v":30102141800282},{"$f":"'الصف الثاني'!H8","v":"زخرفة قرار"},{"$f":"'الصف الثاني'!I23","v":"منقولة"},{"$f":"'الصف الثاني'!J23","v":"مسلمة"},{"$f":"'الصف الثاني'!K23","v":"مصرية"},{"$f":"'الصف الثاني'!M8","v":0},{"$f":"'الصف الثاني'!N8","v":14.5},{"$f":"'الصف الثاني'!P8","v":0},{"$f":"'الصف الثاني'!Q8","v":10},{"$f":"'الصف الثاني'!S8","v":0},{"$f":"'الصف الثاني'!T8","v":17},{"$f":"'الصف الثاني'!V8","v":0},{"$f":"'الصف الثاني'!W8","v":13.5},{"$f":"'الصف الثاني'!Y8","v":0},{"$f":"'الصف الثاني'!Z8","v":5},{"$f":"'الصف الثاني'!AB8","v":0},{"$f":"'الصف الثاني'!AC8","v":5},{"$f":"'الصف الثاني'!AE8","v":0},{"$f":"'الصف الثاني'!AF8","v":50},{"$f":"'الصف الثاني'!AH8","v":0},{"$f":"'الصف الثاني'!AI8","v":11},{"$f":"'الصف الثاني'!AK8","v":0},{"$f":"'الصف الثاني'!AL8","v":24},{"$f":"'الصف الثاني'!AN8","v":0},{"$f":"'الصف الثاني'!AO8","v":19},{"$f":"'الصف الثاني'!AQ8","v":0},{"$f":"'الصف الثاني'!AR8","v":19},{"$f":"'الصف الثاني'!AT8","v":0},{"$f":"'الصف الثاني'!AU8","v":11},{"$f":"'الصف الثاني'!AW8","v":0},{"$f":"'الصف الثاني'!AX8","v":57},{"$f":"'الصف الثاني'!AY8","v":256},{"$f":"'الصف الثاني'!BA8","v":0},{"$f":"'الصف الثاني'!BB8","v":8},{"$f":"'الصف الثاني'!BC8","v":"راسبة"},{"$f":"'الصف الثاني'!BD8","v":"عربي - انجليزي - رياضيات - فيزياء -  - حاسب - امن صناعي - رسم فني - تخطيط - تكنولوجيا عمليات نظري - تاريخ الفنون - تكنولوجيا الخامات - تكنولوجيا الاجهزة - تكنولوجيا العمليات عملي - تربية دينية"}]
[5,{"$f":"'الصف الثاني'!D9","v":2705},{"$f":"'الصف الثاني'!E9","v":"اية محمد خليفة محمود البنا"},{"$f":"'الصف الثاني'!F9","v":29611241801827},{"$f":"'الصف الثاني'!H9","v":"زخرفة قرار"},{"$f":"'الصف الثاني'!I24","v":"منقولة"},{"$f":"'الصف الثاني'!J24","v":"مسلمة"},{"$f":"'الصف الثاني'!K24","v":"مصرية"},{"$f":"'الصف الثاني'!M9","v":0},{"$f":"'الصف الثاني'!N9","v":12},{"$f":"'الصف الثاني'!P9","v":0},{"$f":"'الصف الثاني'!Q9","v":7},{"$f":"'الصف الثاني'!S9","v":0},{"$f":"'الصف الثاني'!T9","v":16},{"$f":"'الصف الثاني'!V9","v":0},{"$f":"'الصف الثاني'!W9","v":13.5},{"$f":"'الصف الثاني'!Y9","v":0},{"$f":"'الصف الثاني'!Z9","v":5},{"$f":"'الصف الثاني'!AB9","v":0},{"$f":"'الصف الثاني'!AC9","v":5},{"$f":"'الصف الثاني'!AE9","v":0},{"$f":"'الصف الثاني'!AF9","v":35},{"$f":"'الصف الثاني'!AH9","v":0},{"$f":"'الصف الثاني'!AI9","v":10},{"$f":"'الصف الثاني'!AK9","v":0},{"$f":"'الصف الثاني'!AL9","v":24},{"$f":"'الصف الثاني'!AN9","v":0},{"$f":"'الصف الثاني'!AO9","v":18},{"$f":"'الصف الثاني'!AQ9","v":0},{"$f":"'الصف الثاني'!AR9","v":18},{"$f":"'الصف الثاني'!AT9","v":0},{"$f":"'الصف الثاني'!AU9","v":11},{"$f":"'الصف الثاني'!AW9","v":0},{"$f":"'الصف الثاني'!AX9","v":54},{"$f":"'الصف الثاني'!AY9","v":228.5},{"$f":"'الصف الثاني'!BA9","v":0},{"$f":"'الصف الثاني'!BB9","v":6},{"$f":"'الصف الثاني'!BC9","v":"راسبة"},{"$f":"'الصف الثاني'!BD9","v":"عربي - انجليزي - رياضيات - فيزياء -  - حاسب - امن صناعي - رسم فني - تخطيط - تكنولوجيا عمليات نظري - تاريخ الفنون - تكنولوجيا الخامات - تكنولوجيا الاجهزة - تكنولوجيا العمليات عملي - تربية دينية"}]
[6,{"$f":"'الصف الثاني'!D10","v":2706},{"$f":"'الصف الثاني'!E10","v":"ايمان ابراهيم محمود الحناوي"},{"$f":"'الصف الثاني'!F10","v":29903131800761},{"$f":"'الصف الثاني'!H10","v":"زخرفة قرار"},{"$f":"'الصف الثاني'!I25","v":"منقولة"},{"$f":"'الصف الثاني'!J25","v":"مسلمة"},{"$f":"'الصف الثاني'!K25","v":"مصرية"},{"$f":"'الصف الثاني'!M10","v":0},{"$f":"'الصف الثاني'!N10","v":14},{"$f":"'الصف الثاني'!P10","v":0},{"$f":"'الصف الثاني'!Q10","v":8.5},{"$f":"'الصف الثاني'!S10","v":0},{"$f":"'الصف الثاني'!T10","v":18},{"$f":"'الصف الثاني'!V10","v":0},{"$f":"'الصف الثاني'!W10","v":13.5},{"$f":"'الصف الثاني'!Y10","v":0},{"$f":"'الصف الثاني'!Z10","v":5},{"$f":"'الصف الثاني'!AB10","v":0},{"$f":"'الصف الثاني'!AC10","v":5},{"$f":"'الصف الثاني'!AE10","v":0},{"$f":"'الصف الثاني'!AF10","v":40},{"$f":"'الصف الثاني'!AH10","v":0},{"$f":"'الصف الثاني'!AI10","v":9},{"$f":"'الصف الثاني'!AK10","v":0},{"$f":"'الصف الثاني'!AL10","v":23},{"$f":"'الصف الثاني'!AN10","v":0},{"$f":"'الصف الثاني'!AO10","v":18},{"$f":"'الصف الثاني'!AQ10","v":0},{"$f":"'الصف الثاني'!AR10","v":19},{"$f":"'الصف الثاني'!AT10","v":0},{"$f":"'الصف الثاني'!AU10","v":11},{"$f":"'الصف الثاني'!AW10","v":0},{"$f":"'الصف الثاني'!AX10","v":57},{"$f":"'الصف الثاني'!AY10","v":241},{"$f":"'الصف الثاني'!BA10","v":0},{"$f":"'الصف الثاني'!BB10","v":8},{"$f":"'الصف الثاني'!BC10","v":"راسبة"},{"$f":"'الصف الثاني'!BD10","v":"عربي - انجليزي - رياضيات - فيزياء -  - حاسب - امن صناعي - رسم فني - تخطيط - تكنولوجيا عمليات نظري - تاريخ الفنون - تكنولوجيا الخامات - تكنولوجيا الاجهزة - تكنولوجيا العمليات عملي - تربية دينية"}]
[7,{"$f":"'الصف الثاني'!D11","v":2707},{"$f":"'الصف الثاني'!E11","v":"بسمة محمد عبد الفتاح سعد"},{"$f":"'الصف الثاني'!F11","v":30002121803108},{"$f":"'الصف الثاني'!H11","v":"زخرفة قرار"},{"$f":"'الصف الثاني'!I26","v":"منقولة"},{"$f":"'الصف الثاني'!J26","v":"مسلمة"},{"$f":"'الصف الثاني'!K26","v":"مصرية"},{"$f":"'الصف الثاني'!M11","v":0},{"$f":"'الصف الثاني'!N11","v":14.5},{"$f":"'الصف الثاني'!P11","v":0},{"$f":"'الصف الثاني'!Q11","v":10.5},{"$f":"'الصف الثاني'!S11","v":0},{"$f":"'الصف الثاني'!T11","v":16.5},{"$f":"'الصف الثاني'!V11","v":0},{"$f":"'الصف الثاني'!W11","v":13.5},{"$f":"'الصف الثاني'!Y11","v":0},{"$f":"'الصف الثاني'!Z11","v":5},{"$f":"'الصف الثاني'!AB11","v":0},{"$f":"'الصف الثاني'!AC11","v":5},{"$f":"'الصف الثاني'!AE11","v":0},{"$f":"'الصف الثاني'!AF11","v":35},{"$f":"'الصف الثاني'!AH11","v":0},{"$f":"'الصف الثاني'!AI11","v":10},{"$f":"'الصف الثاني'!AK11","v":0},{"$f":"'الصف الثاني'!AL11","v":25},{"$f":"'الصف الثاني'!AN11","v":0},{"$f":"'الصف الثاني'!AO11","v":19},{"$f":"'الصف الثاني'!AQ11","v":0},{"$f":"'الصف الثاني'!AR11","v":19},{"$f":"'الصف الثاني'!AT11","v":0},{"$f":"'الصف الثاني'!AU11","v":11},{"$f":"'الصف الثاني'!AW11","v":0},{"$f":"'الصف الثاني'!AX11","v":60},{"$f":"'الصف الثاني'!AY11","v":244},{"$f":"'الصف الثاني'!BA11","v":0},{"$f":"'الصف الثاني'!BB11","v":8},{"$f":"'الصف الثاني'!BC11","v":"راسبة"},{"$f":"'الصف الثاني'!BD11","v":"عربي - انجليزي - رياضيات - فيزياء -  - حاسب - امن صناعي - رسم فني - تخطيط - تكنولوجيا عمليات نظري - تاريخ الفنون - تكنولوجيا الخامات - تكنولوجيا الاجهزة - تكنولوجيا العمليات عملي - تربية دينية"}]
[8,{"$f":"'الصف الثاني'!D12","v":2708},{"$f":"'الصف الثاني'!E12","v":"حبيبة محمد شحاته على حسن"},{"$f":"'الصف الثاني'!F12","v":30011061800685},{"$f":"'الصف الثاني'!H12","v":"زخرفة قرار"},{"$f":"'الصف الثاني'!I27","v":"منقولة"},{"$f":"'الصف الثاني'!J27","v":"مسلمة"},{"$f":"'الصف الثاني'!K27","v":"مصرية"},{"$f":"'الصف الثاني'!M12","v":0},{"$f":"'الصف الثاني'!N12","v":14.5},{"$f":"'الصف الثاني'!P12","v":0},{"$f":"'الصف الثاني'!Q12","v":13},{"$f":"'الصف الثاني'!S12","v":0},{"$f":"'الصف الثاني'!T12","v":17},{"$f":"'الصف الثاني'!V12","v":0},{"$f":"'الصف الثاني'!W12","v":13.5},{"$f":"'الصف الثاني'!Y12","v":0},{"$f":"'الصف الثاني'!Z12","v":5},{"$f":"'الصف الثاني'!AB12","v":0},{"$f":"'الصف الثاني'!AC12","v":6},{"$f":"'الصف الثاني'!AE12","v":0},{"$f":"'الصف الثاني'!AF12","v":40},{"$f":"'الصف الثاني'!AH12","v":0},{"$f":"'الصف الثاني'!AI12","v":10},{"$f":"'الصف الثاني'!AK12","v":0},{"$f":"'الصف الثاني'!AL12","v":21},{"$f":"'الصف الثاني'!AN12","v":0},{"$f":"'الصف الثاني'!AO12","v":18},{"$f":"'الصف الثاني'!AQ12","v":0},{"$f":"'الصف الثاني'!AR12","v":19},{"$f":"'الصف الثاني'!AT12","v":0},{"$f":"'الصف الثاني'!AU12","v":12},{"$f":"'الصف الثاني'!AW12","v":0},{"$f":"'الصف الثاني'!AX12","v":56},{"$f":"'الصف الثاني'!AY12","v":245},{"$f":"'الصف الثاني'!BA12","v":0},{"$f":"'الصف الثاني'!BB12","v":7.5},{"$f":"'الصف الثاني'!BC12","v":"راسبة"},{"$f":"'الصف الثاني'!BD12","v":"عربي - انجليزي - رياضيات - فيزياء -  - حاسب - امن صناعي - رسم فني - تخطيط - تكنولوجيا عمليات نظري - تاريخ الفنون - تكنولوجيا الخامات - تكنولوجيا الاجهزة - تكنولوجيا العمليات عملي - تربية دينية"}]
[9,{"$f":"'الصف الثاني'!D13","v":2709},{"$f":"'الصف الثاني'!E13","v":"حنان سيد احمد مصطفى سلطان"},{"$f":"'الصف الثاني'!F13","v":26711271803623},{"$f":"'الصف الثاني'!H13","v":"زخرفة قرار"},{"$f":"'الصف الثاني'!I28","v":"منقولة"},{"$f":"'الصف الثاني'!J28","v":"مسلمة"},{"$f":"'الصف الثاني'!K28","v":"مصرية"},{"$f":"'الصف الثاني'!M13","v":0},{"$f":"'الصف الثاني'!N13","v":13.5},{"$f":"'الصف الثاني'!P13","v":0},{"$f":"'الصف الثاني'!Q13","v":7.5},{"$f":"'الصف الثاني'!S13","v":0},{"$f":"'الصف الثاني'!T13","v":13},{"$f":"'الصف الثاني'!V13","v":0},{"$f":"'الصف الثاني'!W13","v":12.5},{"$f":"'الصف الثاني'!Y13","v":0},{"$f":"'الصف الثاني'!Z13","v":5},{"$f":"'الصف الثاني'!AB13","v":0},{"$f":"'الصف الثاني'!AC13","v":7},{"$f":"'الصف الثاني'!AE13","v":0},{"$f":"'الصف الثاني'!AF13","v":35},{"$f":"'الصف الثاني'!AH13","v":0},{"$f":"'الصف الثاني'!AI13","v":7},{"$f":"'الصف الثاني'!AK13","v":0},{"$f":"'الصف الثاني'!AL13","v":20},{"$f":"'الصف الثاني'!AN13","v":0},{"$f":"'الصف الثاني'!AO13","v":19},{"$f":"'الصف الثاني'!AQ13","v":0},{"$f":"'الصف الثاني'!AR13","v":15},{"$f":"'الصف الثاني'!AT13","v":0},{"$f":"'الصف الثاني'!AU13","v":11},{"$f":"'الصف الثاني'!AW13","v":0},{"$f":"'الصف الثاني'!AX13","v":52},{"$f":"'الصف الثاني'!AY13","v":217.5},{"$f":"'الصف الثاني'!BA13","v":0},{"$f":"'الصف الثاني'!BB13","v":7},{"$f":"'الصف الثاني'!BC13","v":"راسبة"},{"$f":"'الصف الثاني'!BD13","v":"عربي - انجليزي - رياضيات - فيزياء -  - حاسب - امن صناعي - رسم فني - تخطيط - تكنولوجيا عمليات نظري - تاريخ الفنون - تكنولوجيا الخامات - تكنولوجيا الاجهزة - تكنولوجيا العمليات عملي - تربية دينية"}]
[10,{"$f":"'الصف الثاني'!D14","v":2710},{"$f":"'الصف الثاني'!E14","v":"دينا احمد فرجاني خير واقد"},{"$f":"'الصف الثاني'!F14","v":29808171801466},{"$f":"'الصف الثاني'!H14","v":"زخرفة قرار"},{"$f":"'الصف الثاني'!I29","v":"منقولة"},{"$f":"'الصف الثاني'!J29","v":"مسلمة"},{"$f":"'الصف الثاني'!K29","v":"مصرية"},{"$f":"'الصف الثاني'!M14","v":0},{"$f":"'الصف الثاني'!N14","v":11.5},{"$f":"'الصف الثاني'!P14","v":0},{"$f":"'الصف الثاني'!Q14","v":13.5},{"$f":"'الصف الثاني'!S14","v":0},{"$f":"'الصف الثاني'!T14","v":3},{"$f":"'الصف الثاني'!V14","v":0},{"$f":"'الصف الثاني'!W14","v":13.5},{"$f":"'الصف الثاني'!Y14","v":0},{"$f":"'الصف الثاني'!Z14","v":5},{"$f":"'الصف الثاني'!AB14","v":0},{"$f":"'الصف الثاني'!AC14","v":7},{"$f":"'الصف الثاني'!AE14","v":0},{"$f":"'الصف الثاني'!AF14","v":40},{"$f":"'الصف الثاني'!AH14","v":0},{"$f":"'الصف الثاني'!AI14","v":8},{"$f":"'الصف الثاني'!AK14","v":0},{"$f":"'الصف الثاني'!AL14","v":16},{"$f":"'الصف الثاني'!AN14","v":0},{"$f":"'الصف الثاني'!AO14","v":14},{"$f":"'الصف الثاني'!AQ14","v":0},{"$f":"'الصف الثاني'!AR14","v":18},{"$f":"'الصف الثاني'!AT14","v":0},{"$f":"'الصف الثاني'!AU14","v":11},{"$f":"'الصف الثاني'!AW14","v":0},{"$f":"'الصف الثاني'!AX14","v":56},{"$f":"'الصف الثاني'!AY14","v":216.5},{"$f":"'الصف الثاني'!BA14","v":0},{"$f":"'الصف الثاني'!BB14","v":7.5},{"$f":"'الصف الثاني'!BC14","v":"راسبة"},{"$f":"'الصف الثاني'!BD14","v":"عربي - انجليزي - رياضيات - فيزياء -  - حاسب - امن صناعي - رسم فني - تخطيط - تكنولوجيا عمليات نظري - تاريخ الفنون - تكنولوجيا الخامات - تكنولوجيا الاجهزة - تكنولوجيا العمليات عملي - تربية دينية"}]
[11,{"$f":"'الصف الثاني'!D15","v":2711},{"$f":"'الصف الثاني'!E15","v":"ريهام منصور محمد حسن شعيشع"},{"$f":"'الصف الثاني'!F15","v":29711141800445},{"$f":"'الصف الثاني'!H15","v":"زخرفة قرار"},{"$f":"'الصف الثاني'!I30","v":"منقولة"},{"$f":"'الصف الثاني'!J30","v":"مسلمة"},{"$f":"'الصف الثاني'!K30","v":"مصرية"},{"$f":"'الصف الثاني'!M15","v":0},{"$f":"'الصف الثاني'!N15","v":11.5},{"$f":"'الصف الثاني'!P15","v":0},{"$f":"'الصف الثاني'!Q15","v":13.5},{"$f":"'الصف الثاني'!S15","v":0},{"$f":"'الصف الثاني'!T15","v":3},{"$f":"'الصف الثاني'!V15","v":0},{"$f":"'الصف الثاني'!W15","v":12},{"$f":"'الصف الثاني'!Y15","v":0},{"$f":"'الصف الثاني'!Z15","v":5},{"$f":"'الصف الثاني'!AB15","v":0},{"$f":"'الصف الثاني'!AC15","v":7},{"$f":"'الصف الثاني'!AE15","v":0},{"$f":"'الصف الثاني'!AF15","v":40},{"$f":"'الصف الثاني'!AH15","v":0},{"$f":"'الصف الثاني'!AI15","v":12},{"$f":"'الصف الثاني'!AK15","v":0},{"$f":"'الصف الثاني'!AL15","v":19},{"$f":"'الصف الثاني'!AN15","v":0},{"$f":"'الصف الثاني'!AO15","v":17},{"$f":"'الصف الثاني'!AQ15","v":0},{"$f":"'الصف الثاني'!AR15","v":19},{"$f":"'الصف الثاني'!AT15","v":0},{"$f":"'الصف الثاني'!AU15","v":11},{"$f":"'الصف الثاني'!AW15","v":0},{"$f":"'الصف الثاني'!AX15","v":60},{"$f":"'الصف الثاني'!AY15","v":230},{"$f":"'الصف الثاني'!BA15","v":0},{"$f":"'الصف الثاني'!BB15","v":8.5},{"$f":"'الصف الثاني'!BC15","v":"راسبة"},{"$f":"'الصف الثاني'!BD15","v":"عربي - انجليزي - رياضيات - فيزياء -  - حاسب - امن صناعي - رسم فني - تخطيط - تكنولوجيا عمليات نظري - تاريخ الفنون - تكنولوجيا الخامات - تكنولوجيا الاجهزة - تكنولوجيا العمليات عملي - تربية دينية"}]
[12,{"$f":"'الصف الثاني'!D16","v":2712},{"$f":"'الصف الثاني'!E16","v":"سارة عبد القادر ابراهيم على حسن "},{"$f":"'الصف الثاني'!F16","v":29303171800104},{"$f":"'الصف الثاني'!H16","v":"زخرفة قرار"},{"$f":"'الصف الثاني'!I31","v":"منقولة"},{"$f":"'الصف الثاني'!J31","v":"مسلمة"},{"$f":"'الصف الثاني'!K31","v":"مصرية"},{"$f":"'الصف الثاني'!M16","v":0},{"$f":"'الصف الثاني'!N16","v":13},{"$f":"'الصف الثاني'!P16","v":0},{"$f":"'الصف الثاني'!Q16","v":14},{"$f":"'الصف الثاني'!S16","v":0},{"$f":"'الصف الثاني'!T16","v":3},{"$f":"'الصف الثاني'!V16","v":0},{"$f":"'الصف الثاني'!W16","v":14.5},{"$f":"'الصف الثاني'!Y16","v":0},{"$f":"'الصف الثاني'!Z16","v":5},{"$f":"'الصف الثاني'!AB16","v":0},{"$f":"'الصف الثاني'!AC16","v":8},{"$f":"'الصف الثاني'!AE16","v":0},{"$f":"'الصف الثاني'!AF16","v":35},{"$f":"'الصف الثاني'!AH16","v":0},{"$f":"'الصف الثاني'!AI16","v":12},{"$f":"'الصف الثاني'!AK16","v":0},{"$f":"'الصف الثاني'!AL16","v":18},{"$f":"'الصف الثاني'!AN16","v":0},{"$f":"'الصف الثاني'!AO16","v":18},{"$f":"'الصف الثاني'!AQ16","v":0},{"$f":"'الصف الثاني'!AR16","v":18},{"$f":"'الصف الثاني'!AT16","v":0},{"$f":"'الصف الثاني'!AU16","v":9},{"$f":"'الصف الثاني'!AW16","v":0},{"$f":"'الصف الثاني'!AX16","v":57},{"$f":"'الصف الثاني'!AY16","v":224.5},{"$f":"'الصف الثاني'!BA16","v":0},{"$f":"'الصف الثاني'!BB16","v":8},{"$f":"'الصف الثاني'!BC16","v":"راسبة"},{"$f":"'الصف الثاني'!BD16","v":"عربي - انجليزي - رياضيات - فيزياء -  - حاسب - امن صناعي - رسم فني - تخطيط - تكنولوجيا عمليات نظري - تاريخ الفنون - تكنولوجيا الخامات - تكنولوجيا الاجهزة - تكنولوجيا العمليات عملي - تربية دينية"}]
[13,{"$f":"'الصف الثاني'!D17","v":2713},{"$f":"'الصف الثاني'!E17","v":"سلوى سعيد محمد عبد الحليم\n "},{"$f":"'الصف الثاني'!F17","v":27702091803123},{"$f":"'الصف الثاني'!H17","v":"زخرفة قرار"},{"$f":"'الصف الثاني'!I32","v":"منقولة"},{"$f":"'الصف الثاني'!J32","v":"مسلمة"},{"$f":"'الصف الثاني'!K32","v":"مصرية"},{"$f":"'الصف الثاني'!M17","v":0},{"$f":"'الصف الثاني'!N17","v":15},{"$f":"'الصف الثاني'!P17","v":0},{"$f":"'الصف الثاني'!Q17","v":10},{"$f":"'الصف الثاني'!S17","v":0},{"$f":"'الصف الثاني'!T17","v":0},{"$f":"'الصف الثاني'!V17","v":0},{"$f":"'الصف الثاني'!W17","v":13},{"$f":"'الصف الثاني'!Y17","v":0},{"$f":"'الصف الثاني'!Z17","v":5},{"$f":"'الصف الثاني'!AB17","v":0},{"$f":"'الصف الثاني'!AC17","v":7},{"$f":"'الصف الثاني'!AE17","v":0},{"$f":"'الصف الثاني'!AF17","v":35},{"$f":"'الصف الثاني'!AH17","v":0},{"$f":"'الصف الثاني'!AI17","v":8},{"$f":"'الصف الثاني'!AK17","v":0},{"$f":"'الصف الثاني'!AL17","v":21},{"$f":"'الصف الثاني'!AN17","v":0},{"$f":"'الصف الثاني'!AO17","v":18},{"$f":"'الصف الثاني'!AQ17","v":0},{"$f":"'الصف الثاني'!AR17","v":16},{"$f":"'الصف الثاني'!AT17","v":0},{"$f":"'الصف الثاني'!AU17","v":11},{"$f":"'الصف الثاني'!AW17","v":0},{"$f":"'الصف الثاني'!AX17","v":54},{"$f":"'الصف الثاني'!AY17","v":213},{"$f":"'الصف الثاني'!BA17","v":0},{"$f":"'الصف الثاني'!BB17","v":8},{"$f":"'الصف الثاني'!BC17","v":"راسبة"},{"$f":"'الصف الثاني'!BD17","v":"عربي - انجليزي - رياضيات - فيزياء -  - حاسب - امن صناعي - رسم فني - تخطيط - تكنولوجيا عمليات نظري - تاريخ الفنون - تكنولوجيا الخامات - تكنولوجيا الاجهزة - تكنولوجيا العمليات عملي - تربية دينية"}]
[14,{"$f":"'الصف الثاني'!D18","v":2714},{"$f":"'الصف الثاني'!E18","v":"سماء محمد عبده ابراهيم زعتر"},{"$f":"'الصف الثاني'!F18","v":29804091800781},{"$f":"'الصف الثاني'!H18","v":"زخرفة قرار"},{"$f":"'الصف الثاني'!I33","v":"منقولة"},{"$f":"'الصف الثاني'!J33","v":"مسلمة"},{"$f":"'الصف الثاني'!K33","v":"مصرية"},{"$f":"'الصف الثاني'!M18","v":0},{"$f":"'الصف الثاني'!N18","v":13.5},{"$f":"'الصف الثاني'!P18","v":0},{"$f":"'الصف الثاني'!Q18","v":12},{"$f":"'الصف الثاني'!S18","v":0},{"$f":"'الصف الثاني'!T18","v":10},{"$f":"'الصف الثاني'!V18","v":0},{"$f":"'الصف الثاني'!W18","v":14},{"$f":"'الصف الثاني'!Y18","v":0},{"$f":"'الصف الثاني'!Z18","v":5},{"$f":"'الصف الثاني'!AB18","v":0},{"$f":"'الصف الثاني'!AC18","v":7},{"$f":"'الصف الثاني'!AE18","v":0},{"$f":"'الصف الثاني'!AF18","v":35},{"$f":"'الصف الثاني'!AH18","v":0},{"$f":"'الصف الثاني'!AI18","v":8},{"$f":"'الصف الثاني'!AK18","v":0},{"$f":"'الصف الثاني'!AL18","v":16},{"$f":"'الصف الثاني'!AN18","v":0},{"$f":"'الصف الثاني'!AO18","v":16},{"$f":"'الصف الثاني'!AQ18","v":0},{"$f":"'الصف الثاني'!AR18","v":17},{"$f":"'الصف الثاني'!AT18","v":0},{"$f":"'الصف الثاني'!AU18","v":8},{"$f":"'الصف الثاني'!AW18","v":0},{"$f":"'الصف الثاني'!AX18","v":52},{"$f":"'الصف الثاني'!AY18","v":213.5},{"$f":"'الصف الثاني'!BA18","v":0},{"$f":"'الصف الثاني'!BB18","v":8},{"$f":"'الصف الثاني'!BC18","v":"راسبة"},{"$f":"'الصف الثاني'!BD18","v":"عربي - انجليزي - رياضيات - فيزياء -  - حاسب - امن صناعي - رسم فني - تخطيط - تكنولوجيا عمليات نظري - تاريخ الفنون - تكنولوجيا الخامات - تكنولوجيا الاجهزة - تكنولوجيا العمليات عملي - تربية دينية"}]
[15,{"$f":"'الصف الثاني'!D19","v":2715},{"$f":"'الصف الثاني'!E19","v":"سهام رضا احمد محمد مصطفى"},{"$f":"'الصف الثاني'!F19","v":29402160202866},{"$f":"'الصف الثاني'!H19","v":"زخرفة قرار"},{"$f":"'الصف الثاني'!I19","v":"منقولة"},{"$f":"'الصف الثاني'!J19","v":"مسلمة"},{"$f":"'الصف الثاني'!K19","v":"مصرية"},{"$f":"'الصف الثاني'!M19","v":0},{"$f":"'الصف الثاني'!N19","v":14.5},{"$f":"'الصف الثاني'!P19","v":0},{"$f":"'الصف الثاني'!Q19","v":16.5},{"$f":"'الصف الثاني'!S19","v":0},{"$f":"'الصف الثاني'!T19","v":8},{"$f":"'الصف الثاني'!V19","v":0},{"$f":"'الصف الثاني'!W19","v":14.5},{"$f":"'الصف الثاني'!Y19","v":0},{"$f":"'الصف الثاني'!Z19","v":5},{"$f":"'الصف الثاني'!AB19","v":0},{"$f":"'الصف الثاني'!AC19","v":8},{"$f":"'الصف الثاني'!AE19","v":0},{"$f":"'الصف الثاني'!AF19","v":35},{"$f":"'الصف الثاني'!AH19","v":0},{"$f":"'الصف الثاني'!AI19","v":8},{"$f":"'الصف الثاني'!AK19","v":0},{"$f":"'الصف الثاني'!AL19","v":16},{"$f":"'الصف الثاني'!AN19","v":0},{"$f":"'الصف الثاني'!AO19","v":18},{"$f":"'الصف الثاني'!AQ19","v":0},{"$f":"'الصف الثاني'!AR19","v":19},{"$f":"'الصف الثاني'!AT19","v":0},{"$f":"'الصف الثاني'!AU19","v":8},{"$f":"'الصف الثاني'!AW19","v":0},{"$f":"'الصف الثاني'!AX19","v":53},{"$f":"'الصف الثاني'!AY19","v":223.5},{"$f":"'الصف الثاني'!BA19","v":0},{"$f":"'الصف الثاني'!BB19","v":7.5},{"$f":"'الصف الثاني'!BC19","v":"راسبة"},{"$f":"'الصف الثاني'!BD19","v":"عربي - انجليزي - رياضيات - فيزياء -  - حاسب - امن صناعي - رسم فني - تخطيط - تكنولوجيا عمليات نظري - تاريخ الفنون - تكنولوجيا الخامات - تكنولوجيا الاجهزة - تكنولوجيا العمليات عملي - تربية دينية"}]
[16,{"$f":"'الصف الثاني'!D20","v":2716},{"$f":"'الصف الثاني'!E20","v":"سومه عبد الغني فتحي عبد الغني"},{"$f":"'الصف الثاني'!F20","v":29002041802903},{"$f":"'الصف الثاني'!H20","v":"زخرفة قرار"},{"$f":"'الصف الثاني'!I20","v":"منقولة"},{"$f":"'الصف الثاني'!J20","v":"مسلمة"},{"$f":"'الصف الثاني'!K20","v":"مصرية"},{"$f":"'الصف الثاني'!M20","v":0},{"$f":"'الصف الثاني'!N20","v":9.5},{"$f":"'الصف الثاني'!P20","v":0},{"$f":"'الصف الثاني'!Q20","v":8},{"$f":"'الصف الثاني'!S20","v":0},{"$f":"'الصف الثاني'!T20","v":6},{"$f":"'الصف الثاني'!V20","v":0},{"$f":"'الصف الثاني'!W20","v":15},{"$f":"'الصف الثاني'!Y20","v":0},{"$f":"'الصف الثاني'!Z20","v":7},{"$f":"'الصف الثاني'!AB20","v":0},{"$f":"'الصف الثاني'!AC20","v":7},{"$f":"'الصف الثاني'!AE20","v":0},{"$f":"'الصف الثاني'!AF20","v":35},{"$f":"'الصف الثاني'!AH20","v":0},{"$f":"'الصف الثاني'!AI20","v":9},{"$f":"'الصف الثاني'!AK20","v":0},{"$f":"'الصف الثاني'!AL20","v":16},{"$f":"'الصف الثاني'!AN20","v":0},{"$f":"'الصف الثاني'!AO20","v":18},{"$f":"'الصف الثاني'!AQ20","v":0},{"$f":"'الصف الثاني'!AR20","v":17},{"$f":"'الصف الثاني'!AT20","v":0},{"$f":"'الصف الثاني'!AU20","v":9},{"$f":"'الصف الثاني'!AW20","v":0},{"$f":"'الصف الثاني'!AX20","v":53},{"$f":"'الصف الثاني'!AY20","v":209.5},{"$f":"'الصف الثاني'!BA20","v":0},{"$f":"'الصف الثاني'!BB20","v":6},{"$f":"'الصف الثاني'!BC20","v":"راسبة"},{"$f":"'الصف الثاني'!BD20","v":"عربي - انجليزي - رياضيات - فيزياء -  - حاسب - امن صناعي - رسم فني - تخطيط - تكنولوجيا عمليات نظري - تاريخ الفنون - تكنولوجيا الخامات - تكنولوجيا الاجهزة - تكنولوجيا العمليات عملي - تربية دينية"}]
[17,{"$f":"'الصف الثاني'!D21","v":2717},{"$f":"'الصف الثاني'!E21","v":"شرين عادل محمد احمد حسن"},{"$f":"'الصف الثاني'!F21","v":29905091800308},{"$f":"'الصف الثاني'!H21","v":"زخرفة قرار"},{"$f":"'الصف الثاني'!I21","v":"منقولة"},{"$f":"'الصف الثاني'!J21","v":"مسلمة"},{"$f":"'الصف الثاني'!K21","v":"مصرية"},{"$f":"'الصف الثاني'!M21","v":0},{"$f":"'الصف الثاني'!N21","v":10},{"$f":"'الصف الثاني'!P21","v":0},{"$f":"'الصف الثاني'!Q21","v":14.5},{"$f":"'الصف الثاني'!S21","v":0},{"$f":"'الصف الثاني'!T21","v":5},{"$f":"'الصف الثاني'!V21","v":0},{"$f":"'الصف الثاني'!W21","v":13},{"$f":"'الصف الثاني'!Y21","v":0},{"$f":"'الصف الثاني'!Z21","v":7},{"$f":"'الصف الثاني'!AB21","v":0},{"$f":"'الصف الثاني'!AC21","v":7},{"$f":"'الصف الثاني'!AE21","v":0},{"$f":"'الصف الثاني'!AF21","v":35},{"$f":"'الصف الثاني'!AH21","v":0},{"$f":"'الصف الثاني'!AI21","v":9},{"$f":"'الصف الثاني'!AK21","v":0},{"$f":"'الصف الثاني'!AL21","v":15},{"$f":"'الصف الثاني'!AN21","v":0},{"$f":"'الصف الثاني'!AO21","v":14},{"$f":"'الصف الثاني'!AQ21","v":0},{"$f":"'الصف الثاني'!AR21","v":16},{"$f":"'الصف الثاني'!AT21","v":0},{"$f":"'الصف الثاني'!AU21","v":8},{"$f":"'الصف الثاني'!AW21","v":0},{"$f":"'الصف الثاني'!AX21","v":52},{"$f":"'الصف الثاني'!AY21","v":205.5},{"$f":"'الصف الثاني'!BA21","v":0},{"$f":"'الصف الثاني'!BB21","v":7.5},{"$f":"'الصف الثاني'!BC21","v":"راسبة"},{"$f":"'الصف الثاني'!BD21","v":"عربي - انجليزي - رياضيات - فيزياء -  - حاسب - امن صناعي - رسم فني - تخطيط - تكنولوجيا عمليات نظري - تاريخ الفنون - تكنولوجيا الخامات - تكنولوجيا الاجهزة - تكنولوجيا العمليات عملي - تربية دينية"}]
[18,{"$f":"'الصف الثاني'!D22","v":2718},{"$f":"'الصف الثاني'!E22","v":"شيماء جمال سعيد ابراهيم"},{"$f":"'الصف الثاني'!F22","v":29905011810723},{"$f":"'الصف الثاني'!H22","v":"زخرفة قرار"},{"$f":"'الصف الثاني'!I22","v":"منقولة"},{"$f":"'الصف الثاني'!J22","v":"مسلمة"},{"$f":"'الصف الثاني'!K22","v":"مصرية"},{"$f":"'الصف الثاني'!M22","v":0},{"$f":"'الصف الثاني'!N22","v":0},{"$f":"'الصف الثاني'!P22","v":0},{"$f":"'الصف الثاني'!Q22","v":0},{"$f":"'الصف الثاني'!S22","v":0},{"$f":"'الصف الثاني'!T22","v":0},{"$f":"'الصف الثاني'!V22","v":0},{"$f":"'الصف الثاني'!W22","v":0},{"$f":"'الصف الثاني'!Y22","v":0},{"$f":"'الصف الثاني'!Z22","v":7},{"$f":"'الصف الثاني'!AB22","v":0},{"$f":"'الصف الثاني'!AC22","v":0},{"$f":"'الصف الثاني'!AE22","v":0},{"$f":"'الصف الثاني'!AF22","v":0},{"$f":"'الصف الثاني'!AH22","v":0},{"$f":"'الصف الثاني'!AI22","v":0},{"$f":"'الصف الثاني'!AK22","v":0},{"$f":"'الصف الثاني'!AL22","v":0},{"$f":"'الصف الثاني'!AN22","v":0},{"$f":"'الصف الثاني'!AO22","v":0},{"$f":"'الصف الثاني'!AQ22","v":0},{"$f":"'الصف الثاني'!AR22","v":0},{"$f":"'الصف الثاني'!AT22","v":0},{"$f":"'الصف الثاني'!AU22","v":0},{"$f":"'الصف الثاني'!AW22","v":0},{"$f":"'الصف الثاني'!AX22","v":0},{"$f":"'الصف الثاني'!AY22","v":7},{"$f":"'الصف الثاني'!BA22","v":0},{"$f":"'الصف الثاني'!BB22","v":0},{"$f":"'الصف الثاني'!BC22","v":"راسبة"},{"$f":"'الصف الثاني'!BD22","v":"عربي - انجليزي - رياضيات - فيزياء -  - حاسب - امن صناعي - رسم فني - تخطيط - تكنولوجيا عمليات نظري - تاريخ الفنون - تكنولوجيا الخامات - تكنولوجيا الاجهزة - تكنولوجيا العمليات عملي - تربية دينية"}]
[19,{"$f":"'الصف الثاني'!D23","v":2719},{"$f":"'الصف الثاني'!E23","v":"علياء ابو الحسن محمد علي عطية"},{"$f":"'الصف الثاني'!F23","v":29809191801981},{"$f":"'الصف الثاني'!H23","v":"زخرفة قرار"},{"$f":"'الصف الثاني'!I23","v":"منقولة"},{"$f":"'الصف الثاني'!J23","v":"مسلمة"},{"$f":"'الصف الثاني'!K23","v":"مصرية"},{"$f":"'الصف الثاني'!M23","v":0},{"$f":"'الصف الثاني'!N23","v":14},{"$f":"'الصف الثاني'!P23","v":0},{"$f":"'الصف الثاني'!Q23","v":14},{"$f":"'الصف الثاني'!S23","v":0},{"$f":"'الصف الثاني'!T23","v":5},{"$f":"'الصف الثاني'!V23","v":0},{"$f":"'الصف الثاني'!W23","v":13},{"$f":"'الصف الثاني'!Y23","v":0},{"$f":"'الصف الثاني'!Z23","v":5},{"$f":"'الصف الثاني'!AB23","v":0},{"$f":"'الصف الثاني'!AC23","v":7},{"$f":"'الصف الثاني'!AE23","v":0},{"$f":"'الصف الثاني'!AF23","v":40},{"$f":"'الصف الثاني'!AH23","v":0},{"$f":"'الصف الثاني'!AI23","v":11},{"$f":"'الصف الثاني'!AK23","v":0},{"$f":"'الصف الثاني'!AL23","v":18},{"$f":"'الصف الثاني'!AN23","v":0},{"$f":"'الصف الثاني'!AO23","v":14},{"$f":"'الصف الثاني'!AQ23","v":0},{"$f":"'الصف الثاني'!AR23","v":18},{"$f":"'الصف الثاني'!AT23","v":0},{"$f":"'الصف الثاني'!AU23","v":12},{"$f":"'الصف الثاني'!AW23","v":0},{"$f":"'الصف الثاني'!AX23","v":52},{"$f":"'الصف الثاني'!AY23","v":223},{"$f":"'الصف الثاني'!BA23","v":0},{"$f":"'الصف الثاني'!BB23","v":8},{"$f":"'الصف الثاني'!BC23","v":"راسبة"},{"$f":"'الصف الثاني'!BD23","v":"عربي - انجليزي - رياضيات - فيزياء -  - حاسب - امن صناعي - رسم فني - تخطيط - تكنولوجيا عمليات نظري - تاريخ الفنون - تكنولوجيا الخامات - تكنولوجيا الاجهزة - تكنولوجيا العمليات عملي - تربية دينية"}]
[20,{"$f":"'الصف الثاني'!D24","v":2720},{"$f":"'الصف الثاني'!E24","v":"غادة حسين كامل حسين"},{"$f":"'الصف الثاني'!F24","v":29301011841405},{"$f":"'الصف الثاني'!H24","v":"زخرفة قرار"},{"$f":"'الصف الثاني'!I24","v":"منقولة"},{"$f":"'الصف الثاني'!J24","v":"مسلمة"},{"$f":"'الصف الثاني'!K24","v":"مصرية"},{"$f":"'الصف الثاني'!M24","v":0},{"$f":"'الصف الثاني'!N24","v":15},{"$f":"'الصف الثاني'!P24","v":0},{"$f":"'الصف الثاني'!Q24","v":14},{"$f":"'الصف الثاني'!S24","v":0},{"$f":"'الصف الثاني'!T24","v":5},{"$f":"'الصف الثاني'!V24","v":0},{"$f":"'الصف الثاني'!W24","v":15.5},{"$f":"'الصف الثاني'!Y24","v":0},{"$f":"'الصف الثاني'!Z24","v":5},{"$f":"'الصف الثاني'!AB24","v":0},{"$f":"'الصف الثاني'!AC24","v":7},{"$f":"'الصف الثاني'!AE24","v":0},{"$f":"'الصف الثاني'!AF24","v":40},{"$f":"'الصف الثاني'!AH24","v":0},{"$f":"'الصف الثاني'!AI24","v":10},{"$f":"'الصف الثاني'!AK24","v":0},{"$f":"'الصف الثاني'!AL24","v":18},{"$f":"'الصف الثاني'!AN24","v":0},{"$f":"'الصف الثاني'!AO24","v":18},{"$f":"'الصف الثاني'!AQ24","v":0},{"$f":"'الصف الثاني'!AR24","v":19},{"$f":"'الصف الثاني'!AT24","v":0},{"$f":"'الصف الثاني'!AU24","v":12},{"$f":"'الصف الثاني'!AW24","v":0},{"$f":"'الصف الثاني'!AX24","v":53},{"$f":"'الصف الثاني'!AY24","v":231.5},{"$f":"'الصف الثاني'!BA24","v":0},{"$f":"'الصف الثاني'!BB24","v":8},{"$f":"'الصف الثاني'!BC24","v":"راسبة"},{"$f":"'الصف الثاني'!BD24","v":"عربي - انجليزي - رياضيات - فيزياء -  - حاسب - امن صناعي - رسم فني - تخطيط - تكنولوجيا عمليات نظري - تاريخ الفنون - تكنولوجيا الخامات - تكنولوجيا الاجهزة - تكنولوجيا العمليات عملي - تربية دينية"}]
[21,{"$f":"'الصف الثاني'!D25","v":2721},{"$f":"'الصف الثاني'!E25","v":"غادة رجب فؤاد عبد المقصود بوادي"},{"$f":"'الصف الثاني'!F25","v":29808101803381},{"$f":"'الصف الثاني'!H25","v":"زخرفة قرار"},{"$f":"'الصف الثاني'!I25","v":"منقولة"},{"$f":"'الصف الثاني'!J25","v":"مسلمة"},{"$f":"'الصف الثاني'!K25","v":"مصرية"},{"$f":"'الصف الثاني'!M25","v":0},{"$f":"'الصف الثاني'!N25","v":13},{"$f":"'الصف الثاني'!P25","v":0},{"$f":"'الصف الثاني'!Q25","v":13},{"$f":"'الصف الثاني'!S25","v":0},{"$f":"'الصف الثاني'!T25","v":6},{"$f":"'الصف الثاني'!V25","v":0},{"$f":"'الصف الثاني'!W25","v":16},{"$f":"'الصف الثاني'!Y25","v":0},{"$f":"'الصف الثاني'!Z25","v":5},{"$f":"'الصف الثاني'!AB25","v":0},{"$f":"'الصف الثاني'!AC25","v":7},{"$f":"'الصف الثاني'!AE25","v":0},{"$f":"'الصف الثاني'!AF25","v":40},{"$f":"'الصف الثاني'!AH25","v":0},{"$f":"'الصف الثاني'!AI25","v":10},{"$f":"'الصف الثاني'!AK25","v":0},{"$f":"'الصف الثاني'!AL25","v":15},{"$f":"'الصف الثاني'!AN25","v":0},{"$f":"'الصف الثاني'!AO25","v":19},{"$f":"'الصف الثاني'!AQ25","v":0},{"$f":"'الصف الثاني'!AR25","v":19},{"$f":"'الصف الثاني'!AT25","v":0},{"$f":"'الصف الثاني'!AU25","v":12},{"$f":"'الصف الثاني'!AW25","v":0},{"$f":"'الصف الثاني'!AX25","v":53},{"$f":"'الصف الثاني'!AY25","v":228},{"$f":"'الصف الثاني'!BA25","v":0},{"$f":"'الصف الثاني'!BB25","v":7.5},{"$f":"'الصف الثاني'!BC25","v":"راسبة"},{"$f":"'الصف الثاني'!BD25","v":"عربي - انجليزي - رياضيات - فيزياء -  - حاسب - امن صناعي - رسم فني - تخطيط - تكنولوجيا عمليات نظري - تاريخ الفنون - تكنولوجيا الخامات - تكنولوجيا الاجهزة - تكنولوجيا العمليات عملي - تربية دينية"}]
[22,{"$f":"'الصف الثاني'!D26","v":2722},{"$f":"'الصف الثاني'!E26","v":"منال سيد احمد ابو الحمد كبير "},{"$f":"'الصف الثاني'!F26","v":29810011809121},{"$f":"'الصف الثاني'!H26","v":"زخرفة قرار"},{"$f":"'الصف الثاني'!I26","v":"منقولة"},{"$f":"'الصف الثاني'!J26","v":"مسلمة"},{"$f":"'الصف الثاني'!K26","v":"مصرية"},{"$f":"'الصف الثاني'!M26","v":0},{"$f":"'الصف الثاني'!N26","v":13.5},{"$f":"'الصف الثاني'!P26","v":0},{"$f":"'الصف الثاني'!Q26","v":13.5},{"$f":"'الصف الثاني'!S26","v":0},{"$f":"'الصف الثاني'!T26","v":8},{"$f":"'الصف الثاني'!V26","v":0},{"$f":"'الصف الثاني'!W26","v":16},{"$f":"'الصف الثاني'!Y26","v":0},{"$f":"'الصف الثاني'!Z26","v":6},{"$f":"'الصف الثاني'!AB26","v":0},{"$f":"'الصف الثاني'!AC26","v":8},{"$f":"'الصف الثاني'!AE26","v":0},{"$f":"'الصف الثاني'!AF26","v":40},{"$f":"'الصف الثاني'!AH26","v":0},{"$f":"'الصف الثاني'!AI26","v":10},{"$f":"'الصف الثاني'!AK26","v":0},{"$f":"'الصف الثاني'!AL26","v":18},{"$f":"'الصف الثاني'!AN26","v":0},{"$f":"'الصف الثاني'!AO26","v":19},{"$f":"'الصف الثاني'!AQ26","v":0},{"$f":"'الصف الثاني'!AR26","v":19},{"$f":"'الصف الثاني'!AT26","v":0},{"$f":"'الصف الثاني'!AU26","v":12},{"$f":"'الصف الثاني'!AW26","v":0},{"$f":"'الصف الثاني'!AX26","v":56},{"$f":"'الصف الثاني'!AY26","v":239},{"$f":"'الصف الثاني'!BA26","v":0},{"$f":"'الصف الثاني'!BB26","v":5.5},{"$f":"'الصف الثاني'!BC26","v":"راسبة"},{"$f":"'الصف الثاني'!BD26","v":"عربي - انجليزي - رياضيات - فيزياء -  - حاسب - امن صناعي - رسم فني - تخطيط - تكنولوجيا عمليات نظري - تاريخ الفنون - تكنولوجيا الخامات - تكنولوجيا الاجهزة - تكنولوجيا العمليات عملي - تربية دينية"}]
[23,{"$f":"'الصف الثاني'!D27","v":2723},{"$f":"'الصف الثاني'!E27","v":"ناديه محمد احمد عامر احمد"},{"$f":"'الصف الثاني'!F27","v":29507032601266},{"$f":"'الصف الثاني'!H27","v":"زخرفة قرار"},{"$f":"'الصف الثاني'!I27","v":"منقولة"},{"$f":"'الصف الثاني'!J27","v":"مسلمة"},{"$f":"'الصف الثاني'!K27","v":"مصرية"},{"$f":"'الصف الثاني'!M27","v":0},{"$f":"'الصف الثاني'!N27","v":8},{"$f":"'الصف الثاني'!P27","v":0},{"$f":"'الصف الثاني'!Q27","v":14.5},{"$f":"'الصف الثاني'!S27","v":0},{"$f":"'الصف الثاني'!T27","v":3},{"$f":"'الصف الثاني'!V27","v":0},{"$f":"'الصف الثاني'!W27","v":17},{"$f":"'الصف الثاني'!Y27","v":0},{"$f":"'الصف الثاني'!Z27","v":5},{"$f":"'الصف الثاني'!AB27","v":0},{"$f":"'الصف الثاني'!AC27","v":9},{"$f":"'الصف الثاني'!AE27","v":0},{"$f":"'الصف الثاني'!AF27","v":40},{"$f":"'الصف الثاني'!AH27","v":0},{"$f":"'الصف الثاني'!AI27","v":10},{"$f":"'الصف الثاني'!AK27","v":0},{"$f":"'الصف الثاني'!AL27","v":16},{"$f":"'الصف الثاني'!AN27","v":0},{"$f":"'الصف الثاني'!AO27","v":19},{"$f":"'الصف الثاني'!AQ27","v":0},{"$f":"'الصف الثاني'!AR27","v":18},{"$f":"'الصف الثاني'!AT27","v":0},{"$f":"'الصف الثاني'!AU27","v":11},{"$f":"'الصف الثاني'!AW27","v":0},{"$f":"'الصف الثاني'!AX27","v":53},{"$f":"'الصف الثاني'!AY27","v":223.5},{"$f":"'الصف الثاني'!BA27","v":0},{"$f":"'الصف الثاني'!BB27","v":6.5},{"$f":"'الصف الثاني'!BC27","v":"راسبة"},{"$f":"'الصف الثاني'!BD27","v":"عربي - انجليزي - رياضيات - فيزياء -  - حاسب - امن صناعي - رسم فني - تخطيط - تكنولوجيا عمليات نظري - تاريخ الفنون - تكنولوجيا الخامات - تكنولوجيا الاجهزة - تكنولوجيا العمليات عملي - تربية دينية"}]
[24,{"$f":"'الصف الثاني'!D28","v":2724},{"$f":"'الصف الثاني'!E28","v":"ندى السيد عبد السلام البنا "},{"$f":"'الصف الثاني'!F28","v":29803011816503},{"$f":"'الصف الثاني'!H28","v":"زخرفة قرار"},{"$f":"'الصف الثاني'!I28","v":"منقولة"},{"$f":"'الصف الثاني'!J28","v":"مسلمة"},{"$f":"'الصف الثاني'!K28","v":"مصرية"},{"$f":"'الصف الثاني'!M28","v":0},{"$f":"'الصف الثاني'!N28","v":12.5},{"$f":"'الصف الثاني'!P28","v":0},{"$f":"'الصف الثاني'!Q28","v":15},{"$f":"'الصف الثاني'!S28","v":0},{"$f":"'الصف الثاني'!T28","v":6},{"$f":"'الصف الثاني'!V28","v":0},{"$f":"'الصف الثاني'!W28","v":16.5},{"$f":"'الصف الثاني'!Y28","v":0},{"$f":"'الصف الثاني'!Z28","v":5},{"$f":"'الصف الثاني'!AB28","v":0},{"$f":"'الصف الثاني'!AC28","v":9},{"$f":"'الصف الثاني'!AE28","v":0},{"$f":"'الصف الثاني'!AF28","v":40},{"$f":"'الصف الثاني'!AH28","v":0},{"$f":"'الصف الثاني'!AI28","v":10},{"$f":"'الصف الثاني'!AK28","v":0},{"$f":"'الصف الثاني'!AL28","v":15},{"$f":"'الصف الثاني'!AN28","v":0},{"$f":"'الصف الثاني'!AO28","v":19},{"$f":"'الصف الثاني'!AQ28","v":0},{"$f":"'الصف الثاني'!AR28","v":19},{"$f":"'الصف الثاني'!AT28","v":0},{"$f":"'الصف الثاني'!AU28","v":9},{"$f":"'الصف الثاني'!AW28","v":0},{"$f":"'الصف الثاني'!AX28","v":54},{"$f":"'الصف الثاني'!AY28","v":230},{"$f":"'الصف الثاني'!BA28","v":0},{"$f":"'الصف الثاني'!BB28","v":8},{"$f":"'الصف الثاني'!BC28","v":"راسبة"},{"$f":"'الصف الثاني'!BD28","v":"عربي - انجليزي - رياضيات - فيزياء -  - حاسب - امن صناعي - رسم فني - تخطيط - تكنولوجيا عمليات نظري - تاريخ الفنون - تكنولوجيا الخامات - تكنولوجيا الاجهزة - تكنولوجيا العمليات عملي - تربية دينية"}]
[25,{"$f":"'الصف الثاني'!D29","v":2725},{"$f":"'الصف الثاني'!E29","v":"ندى مجدي سعد مؤنس"},{"$f":"'الصف الثاني'!F29","v":29601011827601},{"$f":"'الصف الثاني'!H29","v":"زخرفة قرار"},{"$f":"'الصف الثاني'!I29","v":"منقولة"},{"$f":"'الصف الثاني'!J29","v":"مسلمة"},{"$f":"'الصف الثاني'!K29","v":"مصرية"},{"$f":"'الصف الثاني'!M29","v":0},{"$f":"'الصف الثاني'!N29","v":13},{"$f":"'الصف الثاني'!P29","v":0},{"$f":"'الصف الثاني'!Q29","v":14.5},{"$f":"'الصف الثاني'!S29","v":0},{"$f":"'الصف الثاني'!T29","v":3},{"$f":"'الصف الثاني'!V29","v":0},{"$f":"'الصف الثاني'!W29","v":16.5},{"$f":"'الصف الثاني'!Y29","v":0},{"$f":"'الصف الثاني'!Z29","v":5},{"$f":"'الصف الثاني'!AB29","v":0},{"$f":"'الصف الثاني'!AC29","v":9},{"$f":"'الصف الثاني'!AE29","v":0},{"$f":"'الصف الثاني'!AF29","v":35},{"$f":"'الصف الثاني'!AH29","v":0},{"$f":"'الصف الثاني'!AI29","v":10},{"$f":"'الصف الثاني'!AK29","v":0},{"$f":"'الصف الثاني'!AL29","v":16},{"$f":"'الصف الثاني'!AN29","v":0},{"$f":"'الصف الثاني'!AO29","v":18},{"$f":"'الصف الثاني'!AQ29","v":0},{"$f":"'الصف الثاني'!AR29","v":19},{"$f":"'الصف الثاني'!AT29","v":0},{"$f":"'الصف الثاني'!AU29","v":10},{"$f":"'الصف الثاني'!AW29","v":0},{"$f":"'الصف الثاني'!AX29","v":54},{"$f":"'الصف الثاني'!AY29","v":223},{"$f":"'الصف الثاني'!BA29","v":0},{"$f":"'الصف الثاني'!BB29","v":6},{"$f":"'الصف الثاني'!BC29","v":"راسبة"},{"$f":"'الصف الثاني'!BD29","v":"عربي - انجليزي - رياضيات - فيزياء -  - حاسب - امن صناعي - رسم فني - تخطيط - تكنولوجيا عمليات نظري - تاريخ الفنون - تكنولوجيا الخامات - تكنولوجيا الاجهزة - تكنولوجيا العمليات عملي - تربية دينية"}]
[26,{"$f":"'الصف الثاني'!D30","v":2726},{"$f":"'الصف الثاني'!E30","v":"نهى محمد فؤاد قطب زلهف"},{"$f":"'الصف الثاني'!F30","v":29807231801324},{"$f":"'الصف الثاني'!H30","v":"زخرفة قرار"},{"$f":"'الصف الثاني'!I30","v":"منقولة"},{"$f":"'الصف الثاني'!J30","v":"مسلمة"},{"$f":"'الصف الثاني'!K30","v":"مصرية"},{"$f":"'الصف الثاني'!M30","v":0},{"$f":"'الصف الثاني'!N30","v":11},{"$f":"'الصف الثاني'!P30","v":0},{"$f":"'الصف الثاني'!Q30","v":14},{"$f":"'الصف الثاني'!S30","v":0},{"$f":"'الصف الثاني'!T30","v":4},{"$f":"'الصف الثاني'!V30","v":0},{"$f":"'الصف الثاني'!W30","v":13.5},{"$f":"'الصف الثاني'!Y30","v":0},{"$f":"'الصف الثاني'!Z30","v":5},{"$f":"'الصف الثاني'!AB30","v":0},{"$f":"'الصف الثاني'!AC30","v":9},{"$f":"'الصف الثاني'!AE30","v":0},{"$f":"'الصف الثاني'!AF30","v":40},{"$f":"'الصف الثاني'!AH30","v":0},{"$f":"'الصف الثاني'!AI30","v":10},{"$f":"'الصف الثاني'!AK30","v":0},{"$f":"'الصف الثاني'!AL30","v":16},{"$f":"'الصف الثاني'!AN30","v":0},{"$f":"'الصف الثاني'!AO30","v":19},{"$f":"'الصف الثاني'!AQ30","v":0},{"$f":"'الصف الثاني'!AR30","v":19},{"$f":"'الصف الثاني'!AT30","v":0},{"$f":"'الصف الثاني'!AU30","v":9},{"$f":"'الصف الثاني'!AW30","v":0},{"$f":"'الصف الثاني'!AX30","v":58},{"$f":"'الصف الثاني'!AY30","v":227.5},{"$f":"'الصف الثاني'!BA30","v":0},{"$f":"'الصف الثاني'!BB30","v":7.5},{"$f":"'الصف الثاني'!BC30","v":"راسبة"},{"$f":"'الصف الثاني'!BD30","v":"عربي - انجليزي - رياضيات - فيزياء -  - حاسب - امن صناعي - رسم فني - تخطيط - تكنولوجيا عمليات نظري - تاريخ الفنون - تكنولوجيا الخامات - تكنولوجيا الاجهزة - تكنولوجيا العمليات عملي - تربية دينية"}]
[27,{"$f":"'الصف الثاني'!D31","v":2727},{"$f":"'الصف الثاني'!E31","v":"هبة محمود سعد الدين محمود النفراوي"},{"$f":"'الصف الثاني'!F31","v":29806201803741},{"$f":"'الصف الثاني'!H31","v":"زخرفة قرار"},{"$f":"'الصف الثاني'!I31","v":"منقولة"},{"$f":"'الصف الثاني'!J31","v":"مسلمة"},{"$f":"'الصف الثاني'!K31","v":"مصرية"},{"$f":"'الصف الثاني'!M31","v":0},{"$f":"'الصف الثاني'!N31","v":11},{"$f":"'الصف الثاني'!P31","v":0},{"$f":"'الصف الثاني'!Q31","v":14.5},{"$f":"'الصف الثاني'!S31","v":0},{"$f":"'الصف الثاني'!T31","v":5},{"$f":"'الصف الثاني'!V31","v":0},{"$f":"'الصف الثاني'!W31","v":15},{"$f":"'الصف الثاني'!Y31","v":0},{"$f":"'الصف الثاني'!Z31","v":5},{"$f":"'الصف الثاني'!AB31","v":0},{"$f":"'الصف الثاني'!AC31","v":9},{"$f":"'الصف الثاني'!AE31","v":0},{"$f":"'الصف الثاني'!AF31","v":35},{"$f":"'الصف الثاني'!AH31","v":0},{"$f":"'الصف الثاني'!AI31","v":10},{"$f":"'الصف الثاني'!AK31","v":0},{"$f":"'الصف الثاني'!AL31","v":16},{"$f":"'الصف الثاني'!AN31","v":0},{"$f":"'الصف الثاني'!AO31","v":19},{"$f":"'الصف الثاني'!AQ31","v":0},{"$f":"'الصف الثاني'!AR31","v":19},{"$f":"'الصف الثاني'!AT31","v":0},{"$f":"'الصف الثاني'!AU31","v":8},{"$f":"'الصف الثاني'!AW31","v":0},{"$f":"'الصف الثاني'!AX31","v":56},{"$f":"'الصف الثاني'!AY31","v":222.5},{"$f":"'الصف الثاني'!BA31","v":0},{"$f":"'الصف الثاني'!BB31","v":5.5},{"$f":"'الصف الثاني'!BC31","v":"راسبة"},{"$f":"'الصف الثاني'!BD31","v":"عربي - انجليزي - رياضيات - فيزياء -  - حاسب - امن صناعي - رسم فني - تخطيط - تكنولوجيا عمليات نظري - تاريخ الفنون - تكنولوجيا الخامات - تكنولوجيا الاجهزة - تكنولوجيا العمليات عملي - تربية دينية"}]
[28,{"$f":"'الصف الثاني'!D32","v":2728},{"$f":"'الصف الثاني'!E32","v":"وفاء محمود مصطفى على السيد"},{"$f":"'الصف الثاني'!F32","v":30012241801708},{"$f":"'الصف الثاني'!H32","v":"زخرفة قرار"},{"$f":"'الصف الثاني'!I32","v":"منقولة"},{"$f":"'الصف الثاني'!J32","v":"مسلمة"},{"$f":"'الصف الثاني'!K32","v":"مصرية"},{"$f":"'الصف الثاني'!M32","v":0},{"$f":"'الصف الثاني'!N32","v":12.5},{"$f":"'الصف الثاني'!P32","v":0},{"$f":"'الصف الثاني'!Q32","v":12.5},{"$f":"'الصف الثاني'!S32","v":0},{"$f":"'الصف الثاني'!T32","v":5},{"$f":"'الصف الثاني'!V32","v":0},{"$f":"'الصف الثاني'!W32","v":15},{"$f":"'الصف الثاني'!Y32","v":0},{"$f":"'الصف الثاني'!Z32","v":7},{"$f":"'الصف الثاني'!AB32","v":0},{"$f":"'الصف الثاني'!AC32","v":9},{"$f":"'الصف الثاني'!AE32","v":0},{"$f":"'الصف الثاني'!AF32","v":35},{"$f":"'الصف الثاني'!AH32","v":0},{"$f":"'الصف الثاني'!AI32","v":10},{"$f":"'الصف الثاني'!AK32","v":0},{"$f":"'الصف الثاني'!AL32","v":15},{"$f":"'الصف الثاني'!AN32","v":0},{"$f":"'الصف الثاني'!AO32","v":19},{"$f":"'الصف الثاني'!AQ32","v":0},{"$f":"'الصف الثاني'!AR32","v":19},{"$f":"'الصف الثاني'!AT32","v":0},{"$f":"'الصف الثاني'!AU32","v":10},{"$f":"'الصف الثاني'!AW32","v":0},{"$f":"'الصف الثاني'!AX32","v":55},{"$f":"'الصف الثاني'!AY32","v":224},{"$f":"'الصف الثاني'!BA32","v":0},{"$f":"'الصف الثاني'!BB32","v":7.5},{"$f":"'الصف الثاني'!BC32","v":"راسبة"},{"$f":"'الصف الثاني'!BD32","v":"عربي - انجليزي - رياضيات - فيزياء -  - حاسب - امن صناعي - رسم فني - تخطيط - تكنولوجيا عمليات نظري - تاريخ الفنون - تكنولوجيا الخامات - تكنولوجيا الاجهزة - تكنولوجيا العمليات عملي - تربية دينية"}]
[29,{"$f":"'الصف الثاني'!D33","v":2729},{"$f":"'الصف الثاني'!E33","v":"ياسمين محمد حسين فياله"},{"$f":"'الصف الثاني'!F33","v":30108081802726},{"$f":"'الصف الثاني'!H33","v":"زخرفة قرار"},{"$f":"'الصف الثاني'!I33","v":"منقولة"},{"$f":"'الصف الثاني'!J33","v":"مسلمة"},{"$f":"'الصف الثاني'!K33","v":"مصرية"},{"$f":"'الصف الثاني'!M33","v":0},{"$f":"'الصف الثاني'!N33","v":13.5},{"$f":"'الصف الثاني'!P33","v":0},{"$f":"'الصف الثاني'!Q33","v":15},{"$f":"'الصف الثاني'!S33","v":0},{"$f":"'الصف الثاني'!T33","v":5},{"$f":"'الصف الثاني'!V33","v":0},{"$f":"'الصف الثاني'!W33","v":15},{"$f":"'الصف الثاني'!Y33","v":0},{"$f":"'الصف الثاني'!Z33","v":7},{"$f":"'الصف الثاني'!AB33","v":0},{"$f":"'الصف الثاني'!AC33","v":9},{"$f":"'الصف الثاني'!AE33","v":0},{"$f":"'الصف الثاني'!AF33","v":40},{"$f":"'الصف الثاني'!AH33","v":0},{"$f":"'الصف الثاني'!AI33","v":10},{"$f":"'الصف الثاني'!AK33","v":0},{"$f":"'الصف الثاني'!AL33","v":16},{"$f":"'الصف الثاني'!AN33","v":0},{"$f":"'الصف الثاني'!AO33","v":19},{"$f":"'الصف الثاني'!AQ33","v":0},{"$f":"'الصف الثاني'!AR33","v":19},{"$f":"'الصف الثاني'!AT33","v":0},{"$f":"'الصف الثاني'!AU33","v":11},{"$f":"'الصف الثاني'!AW33","v":0},{"$f":"'الصف الثاني'!AX33","v":58},{"$f":"'الصف الثاني'!AY33","v":237.5},{"$f":"'الصف الثاني'!BA33","v":0},{"$f":"'الصف الثاني'!BB33","v":7.5},{"$f":"'الصف الثاني'!BC33","v":"راسبة"},{"$f":"'الصف الثاني'!BD33","v":"عربي - انجليزي - رياضيات - فيزياء -  - حاسب - امن صناعي - رسم فني - تخطيط - تكنولوجيا عمليات نظري - تاريخ الفنون - تكنولوجيا الخامات - تكنولوجيا الاجهزة - تكنولوجيا العمليات عملي - تربية دينية"}]
[null,"أمــــــــــــــلاه                                        رصــــــــــــــــــده                               مسئول الحاسب الآلي                             مشرف الكنترول                                           رئيس الكنترول                      ",null,null,null,null,null,null,null,null,null,null,null,null,null,null,null,null,null,null,null,null,null,null,null,null,null,null,null,null,null,null,null,"مدير المدرســــــــــــــة"]

{"sheet":"ناجحات","index":3,"n_rows":153,"n_cols":23,"rows_kept":153,"cut":false,"hidden":false,"merged":[[5,6,8,6],[5,7,8,7],[5,0,8,0],[5,1,8,1],[5,2,8,2],[5,3,8,3],[5,4,8,4],[5,5,8,5]]}
[]
[]
[]
[]
[]
["م","رقم الجلوس","الاســـــــــــــــــــــــم","الديانة","الرقم القومى","تاريخ الميلاد","حالة القيد","الجنسية","اللغة العربية","اللغة الانجليزية","الرياضيات","الفيزياء","حاسب آلي","امن صناعي","رسم فني","تخطيط","تك. العمليات ن","تك. خامات","تك. اجهزة","تاريخ الفنون","تك. العمليات ع","المجموع الكلي","التربية الدينية"]
[null,null,null,null,null,null,null,null,"المجموع","المجموع","المجموع","المجموع","المجموع","المجموع","المجموع","المجموع","المجموع","المجموع","المجموع","المجموع","المجموع","المجموع","المجموع"]
[null,null,null,null,null,null,null,null,50,40,50,40,20,20,100,40,60,50,50,40,140,{"$f":"SUM(I8:U8)","v":700},20]
[null,null,null,null,null,null,null,null,25,20,25,20,10,10,50,20,30,25,25,20,70,{"$f":"SUM(I9:U9)","v":350},10]
[1,null,null,null,null,{"$f":"IF(LEN(TRIM($E10))=0,\"\",IF(OR(NOT(ISNUMBER($E10)),LEN($E10)<>14),\"Error_MyNumber\",DATE(IF(LEFT($E10,1)=\"2\",MID($E10,2,2),\"20\"&MID($E10,2,2)),MID($E10,4,2),MID($E10,6,2))))","v":""}]
[2,null,null,null,null,{"$f":"IF(LEN(TRIM($E11))=0,\"\",IF(OR(NOT(ISNUMBER($E11)),LEN($E11)<>14),\"Error_MyNumber\",DATE(IF(LEFT($E11,1)=\"2\",MID($E11,2,2),\"20\"&MID($E11,2,2)),MID($E11,4,2),MID($E11,6,2))))","v":""}]
[3,null,null,null,null,""]
[4,null,null,null,null,""]
[5,null,null,null,null,""]
[6,null,null,null,null,""]
[7,null,null,null,null,""]
[8,null,null,null,null,""]
[9,null,null,null,null,""]
[10,null,null,null,null,""]
[11,null,null,null,null,""]
[12,null,null,null,null,""]
[13,null,null,null,null,""]
[14,null,null,null,null,""]
[15,null,null,null,null,""]
[null,null,null,"      كتبه               املاه               راجع الكتابة                  راجع الاملاء                  مشرف الكنترول                      رئيس الكنترول                          مدير المدرسة           "]
[16,null,null,null,null,""]
[17,null,null,null,null,""]
[18,null,null,null,null,""]
[19,null,null,null,null,""]
[20,null,null,null,null,""]
[21,null,null,null,null,""]
[22,null,null,null,null,""]
[23,null,null,null,null,""]
[24,null,null,null,null,""]
[25,null,null,null,null,""]
[26,null,null,null,null,""]
[27,null,null,null,null,""]
[28,null,null,null,null,""]
[29,null,null,null,null,""]
[30,null,null,null,null,""]
[null,null,null,"      كتبه               املاه               راجع الكتابة                  راجع الاملاء                  مشرف الكنترول                      رئيس الكنترول                          مدير المدرسة           "]
[31,null,null,null,null,""]
[32,null,null,null,null,""]
[33,null,null,null,null,""]
[34,null,null,null,null,""]
[35,null,null,null,null,""]
[36,null,null,null,null,""]
[37,null,null,null,null,""]
[38,null,null,null,null,""]
[39,null,null,null,null,""]
[40,null,null,null,null,""]
[41,null,null,null,null,""]
[42,null,null,null,null,""]
[43,null,null,null,null,""]
[44,null,null,null,null,""]
[45,null,null,null,null,""]
[null,null,null,"      كتبه               املاه               راجع الكتابة                  راجع الاملاء                  مشرف الكنترول                      رئيس الكنترول                          مدير المدرسة           "]
[46,null,null,null,null,""]
[47,null,null,null,null,""]
[48,null,null,null,null,""]
[49,null,null,null,null,""]
[50,null,null,null,null,""]
[51,null,null,null,null,""]
[52,null,null,null,null,""]
[53,null,null,null,null,""]
[54,null,null,null,null,""]
[55,null,null,null,null,""]
[56,null,null,null,null,""]
[57,null,null,null,null,""]
[58,null,null,null,null,""]
[59,null,null,null,null,""]
[60,null,null,null,null,""]
[null,null,null,"      كتبه               املاه               راجع الكتابة                  راجع الاملاء                  مشرف الكنترول                      رئيس الكنترول                          مدير المدرسة           "]
[61,null,null,null,null,""]
[62,null,null,null,null,""]
[63,null,null,null,null,""]
[64,null,null,null,null,""]
[65,null,null,null,null,""]
[66,null,null,null,null,{"$f":"IF(LEN(TRIM($E79))=0,\"\",IF(OR(NOT(ISNUMBER($E79)),LEN($E79)<>14),\"Error_MyNumber\",DATE(IF(LEFT($E79,1)=\"2\",MID($E79,2,2),\"20\"&MID($E79,2,2)),MID($E79,4,2),MID($E79,6,2))))","v":""}]
[67,null,null,null,null,""]
[68,null,null,null,null,""]
[69,null,null,null,null,""]
[70,null,null,null,null,""]
[71,null,null,null,null,""]
[72,null,null,null,null,""]
[73,null,null,null,null,""]
[74,null,null,null,null,""]
[75,null,null,null,null,""]
[null,null,null,"      كتبه               املاه               راجع الكتابة                  راجع الاملاء                  مشرف الكنترول                      رئيس الكنترول                          مدير المدرسة           "]
[76,null,null,null,null,""]
[77,null,null,null,null,""]
[78,null,null,null,null,""]
[79,null,null,null,null,""]
[80,null,null,null,null,""]
[81,null,null,null,null,""]
[82,null,null,null,null,""]
[83,null,null,null,null,""]
[84,null,null,null,null,""]
[85,null,null,null,null,""]
[86,null,null,null,null,""]
[87,null,null,null,null,""]
[88,null,null,null,null,""]
[89,null,null,null,null,""]
[90,null,null,null,null,""]
[null,null,null,"      كتبه               املاه               راجع الكتابة                  راجع الاملاء                  مشرف الكنترول                      رئيس الكنترول                          مدير المدرسة           "]
[91,null,null,null,null,""]
[92,null,null,null,null,""]
[93,null,null,null,null,""]
[94,null,null,null,null,""]
[95,null,null,null,null,""]
[96,null,null,null,null,""]
[97,null,null,null,null,""]
[98,null,null,null,null,""]
[99,null,null,null,null,""]
[100,null,null,null,null,""]
[101,null,null,null,null,""]
[102,null,null,null,null,""]
[103,null,null,null,null,""]
[104,null,null,null,null,""]
[105,null,null,null,null,""]
[null,null,null,"      كتبه               املاه               راجع الكتابة                  راجع الاملاء                  مشرف الكنترول                      رئيس الكنترول                          مدير المدرسة           "]
[106,null,null,null,null,""]
[107,null,null,null,null,""]
[108,null,null,null,null,""]
[109,null,null,null,null,""]
[110,null,null,null,null,""]
[111,null,null,null,null,""]
[112,null,null,null,null,""]
[113,null,null,null,null,""]
[114,null,null,null,null,""]
[115,null,null,null,null,""]
[116,null,null,null,null,""]
[117,null,null,null,null,""]
[118,null,null,null,null,""]
[119,null,null,null,null,""]
[120,null,null,null,null,""]
[null,null,null,"      كتبه               املاه               راجع الكتابة                  راجع الاملاء                  مشرف الكنترول                      رئيس الكنترول                          مدير المدرسة           "]
[121,null,null,null,null,""]
[122,null,null,null,null,""]
[123,null,null,null,null,""]
[124,null,null,null,null,""]
[125,null,null,null,null,""]
[126,null,null,null,null,""]
[127,null,null,null,null,""]
[128,null,null,null,null,""]
[129,null,null,null,null,""]
[130,null,null,null,null,{"$f":"IF(LEN(TRIM($E147))=0,\"\",IF(OR(NOT(ISNUMBER($E147)),LEN($E147)<>14),\"Error_MyNumber\",DATE(IF(LEFT($E147,1)=\"2\",MID($E147,2,2),\"20\"&MID($E147,2,2)),MID($E147,4,2),MID($E147,6,2))))","v":""}]
[131,null,null,null,null,""]
[132,null,null,null,null,""]
[133,null,null,null,null,""]
[134,null,null,null,null,""]
[135,null,null,null,null,""]
[null,null,null,"      كتبه               املاه               راجع الكتابة                  راجع الاملاء                  مشرف الكنترول                      رئيس الكنترول                          مدير المدرسة           "]

{"sheet":"دور ثان","index":4,"n_rows":121,"n_cols":24,"rows_kept":121,"cut":false,"hidden":false,"merged":[[5,0,8,0],[5,1,8,1],[5,2,8,2],[5,3,8,3],[5,4,8,4],[5,5,8,5],[12,23,12,24],[13,23,13,24],[14,23,14,24],[15,23,15,24],[16,23,16,24],[17,23,17,24],[5,6,8,6],[5,7,8,7],[5,23,8,24],[9,23,9,24],[10,23,10,24],[11,23,11,24],[25,23,25,24],[26,23,26,24],[27,23,27,24],[28,23,28,24],[29,23,29,24],[30,23,30,24],[18,23,18,24],[19,23,19,24],[20,23,20,24],[21,23,21,24],[22,23,22,24],[23,23,23,24],[37,23,37,24],[38,23,38,24],[39,23,39,24],[41,23,41,24],[42,23,42,24],[43,23,43,24],[31,23,31,24],[32,23,32,24],[33,23,33,24],[34,23,34,24],[35,23,35,24],[36,23,36,24],[50,23,50,24],[51,23,51,24],[52,23,52,24],[53,23,53,24],[54,23,54,24],[55,23,55,24],[44,23,44,24],[45,23,45,24],[46,23,46,24],[47,23,47,24],[48,23,48,24],[49,23,49,24],[63,23,63,24],[64,23,64,24],[65,23,65,24],[66,23,66,24],[67,23,67,24],[68,23,68,24],[57,23,57,24],[58,23,58,24],[59,23,59,24],[60,23,60,24],[61,23,61,24],[62,23,62,24],[76,23,76,24],[77,23,77,24],[78,23,78,24],[79,23,79,24],[80,23,80,24],[81,23,81,24],[69,23,69,24],[70,23,70,24],[71,23,71,24],[73,23,73,24],[74,23,74,24],[75,23,75,24],[89,23,89,24],[90,23,90,24],[91,23,91,24],[92,23,92,24],[93,23,93,24],[94,23,94,24],[82,23,82,24],[83,23,83,24],[84,23,84,24],[85,23,85,24],[86,23,86,24],[87,23,87,24],[101,23,101,24],[102,23,102,24],[103,23,103,24],[105,23,105,24],[106,23,106,24],[107,23,107,24],[95,23,95,24],[96,23,96,24],[97,23,97,24],[98,23,98,24],[99,23,99,24],[100,23,100,24],[114,23,114,24],[115,23,115,24],[116,23,116,24],[117,23,117,24],[118,23,118,24],[119,23,119,24],[108,23,108,24],[109,23,109,24],[110,23,110,24],[111,23,111,24],[112,23,112,24],[113,23,113,24]]}
[]
[]
[]
[]
[]
["م","رقم البجلوس","الاســـــــــــــــــــــــم","الديانة","الرقم القومى","تاريخ الميلاد","حالة القيد","الجنسية","اللغة العربية","اللغة الانجليزية","الرياضيات","الفيزياء","حاسب آلي","امن صناعي","رسم فني","تخطيط","تك. العمليات ن","تك. خامات","تك. اجهزة","تاريخ الفنون","تك. العمليات ع","المجموع الكلي","التربية الدينية","مواد الرسوب"]
[null,null,null,null,null,null,null,null,"المجموع","المجموع","المجموع","المجموع","المجموع","المجموع","المجموع","المجموع","المجموع","المجموع","المجموع","المجموع","المجموع","المجموع","المجموع"]
[null,null,null,null,null,null,null,null,50,40,50,40,20,20,100,40,60,50,50,40,140,{"$f":"SUM(I8:U8)","v":700},20]
[null,null,null,null,null,null,null,null,25,20,25,20,10,10,50,20,30,25,25,20,70,{"$f":"SUM(I9:U9)","v":350},10]
[1,null,null,null,null,{"$f":"IF(LEN(TRIM($E10))=0,\"\",IF(OR(NOT(ISNUMBER($E10)),LEN($E10)<>14),\"Error_MyNumber\",DATE(IF(LEFT($E10,1)=\"2\",MID($E10,2,2),\"20\"&MID($E10,2,2)),MID($E10,4,2),MID($E10,6,2))))","v":""}]
[2,null,null,null,null,{"$f":"IF(LEN(TRIM($E11))=0,\"\",IF(OR(NOT(ISNUMBER($E11)),LEN($E11)<>14),\"Error_MyNumber\",DATE(IF(LEFT($E11,1)=\"2\",MID($E11,2,2),\"20\"&MID($E11,2,2)),MID($E11,4,2),MID($E11,6,2))))","v":""}]
[3,null,null,null,null,""]
[4,null,null,null,null,""]
[5,null,null,null,null,""]
[6,null,null,null,null,""]
[7,null,null,null,null,""]
[8,null,null,null,null,""]
[9,null,null,null,null,""]
[10,null,null,null,null,""]
[11,null,null,null,null,""]
[12,null,null,null,null,""]
[13,null,null,null,null,""]
[14,null,null,null,null,""]
[15,null,null,null,null,""]
[null,null,null,"      كتبه               املاه               راجع الكتابة                  راجع الاملاء                  مشرف الكنترول                      رئيس الكنترول                          مدير المدرسة           "]
[16,null,null,null,null,""]
[17,null,null,null,null,""]
[18,null,null,null,null,""]
[19,null,null,null,null,""]
[20,null,null,null,null,""]
[21,null,null,null,null,""]
[22,null,null,null,null,""]
[23,null,null,null,null,""]
[24,null,null,null,null,""]
[25,null,null,null,null,""]
[26,null,null,null,null,""]
[27,null,null,null,null,""]
[28,null,null,null,null,""]
[29,null,null,null,null,""]
[30,null,null,null,null,""]
[null,null,null,"      كتبه               املاه               راجع الكتابة                  راجع الاملاء                  مشرف الكنترول                      رئيس الكنترول                          مدير المدرسة           "]
[31,null,null,null,null,""]
[32,null,null,null,null,""]
[33,null,null,null,null,""]
[34,null,null,null,null,""]
[35,null,null,null,null,""]
[36,null,null,null,null,""]
[37,null,null,null,null,""]
[38,null,null,null,null,""]
[39,null,null,null,null,""]
[40,null,null,null,null,""]
[41,null,null,null,null,""]
[42,null,null,null,null,""]
[43,null,null,null,null,""]
[44,null,null,null,null,""]
[45,null,null,null,null,""]
[null,null,null,"      كتبه               املاه               راجع الكتابة                  راجع الاملاء                  مشرف الكنترول                      رئيس الكنترول                          مدير المدرسة           "]
[46,null,null,null,null,""]
[47,null,null,null,null,""]
[48,null,null,null,null,""]
[49,null,null,null,null,""]
[50,null,null,null,null,""]
[51,null,null,null,null,""]
[52,null,null,null,null,""]
[53,null,null,null,null,""]
[54,null,null,null,null,""]
[55,null,null,null,null,""]
[56,null,null,null,null,""]
[57,null,null,null,null,""]
[58,null,null,null,null,""]
[59,null,null,null,null,""]
[60,null,null,null,null,""]
[null,null,null,"      كتبه               املاه               راجع الكتابة                  راجع الاملاء                  مشرف الكنترول                      رئيس الكنترول                          مدير المدرسة           "]
[61,null,null,null,null,""]
[62,null,null,null,null,""]
[63,null,null,null,null,""]
[64,null,null,null,null,""]
[65,null,null,null,null,""]
[66,null,null,null,null,{"$f":"IF(LEN(TRIM($E79))=0,\"\",IF(OR(NOT(ISNUMBER($E79)),LEN($E79)<>14),\"Error_MyNumber\",DATE(IF(LEFT($E79,1)=\"2\",MID($E79,2,2),\"20\"&MID($E79,2,2)),MID($E79,4,2),MID($E79,6,2))))","v":""}]
[67,null,null,null,null,""]
[68,null,null,null,null,""]
[69,null,null,null,null,""]
[70,null,null,null,null,""]
[71,null,null,null,null,""]
[72,null,null,null,null,""]
[73,null,null,null,null,""]
[74,null,null,null,null,""]
[75,null,null,null,null,""]
[null,null,null,"      كتبه               املاه               راجع الكتابة                  راجع الاملاء                  مشرف الكنترول                      رئيس الكنترول                          مدير المدرسة           "]
[76,null,null,null,null,""]
[77,null,null,null,null,""]
[78,null,null,null,null,""]
[79,null,null,null,null,""]
[80,null,null,null,null,""]
[81,null,null,null,null,""]
[82,null,null,null,null,""]
[83,null,null,null,null,""]
[84,null,null,null,null,""]
[85,null,null,null,null,""]
[86,null,null,null,null,""]
[87,null,null,null,null,""]
[88,null,null,null,null,""]
[89,null,null,null,null,""]
[90,null,null,null,null,""]
[null,null,null,"      كتبه               املاه               راجع الكتابة                  راجع الاملاء                  مشرف الكنترول                      رئيس الكنترول                          مدير المدرسة           "]
[91,null,null,null,null,""]
[92,null,null,null,null,""]
[93,null,null,null,null,""]
[94,null,null,null,null,""]
[95,null,null,null,null,""]
[96,null,null,null,null,""]
[97,null,null,null,null,""]
[98,null,null,null,null,""]
[99,null,null,null,null,""]
[100,null,null,null,null,""]
[101,null,null,null,null,""]
[102,null,null,null,null,""]
[103,null,null,null,null,""]
[104,null,null,null,null,""]
[105,null,null,null,null,""]
[null,null,null,"      كتبه               املاه               راجع الكتابة                  راجع الاملاء                  مشرف الكنترول                      رئيس الكنترول                          مدير المدرسة           "]

{"sheet":"راسبات","index":5,"n_rows":121,"n_cols":24,"rows_kept":121,"cut":false,"hidden":false,"merged":[[5,0,8,0],[5,1,8,1],[5,2,8,2],[5,3,8,3],[5,4,8,4],[5,5,8,5],[12,23,12,24],[13,23,13,24],[14,23,14,24],[15,23,15,24],[16,23,16,24],[17,23,17,24],[5,6,8,6],[5,7,8,7],[5,23,8,24],[9,23,9,24],[10,23,10,24],[11,23,11,24],[25,23,25,24],[26,23,26,24],[27,23,27,24],[28,23,28,24],[29,23,29,24],[30,23,30,24],[18,23,18,24],[19,23,19,24],[20,23,20,24],[21,23,21,24],[22,23,22,24],[23,23,23,24],[37,23,37,24],[38,23,38,24],[39,23,39,24],[41,23,41,24],[42,23,42,24],[43,23,43,24],[31,23,31,24],[32,23,32,24],[33,23,33,24],[34,23,34,24],[35,23,35,24],[36,23,36,24],[50,23,50,24],[51,23,51,24],[52,23,52,24],[53,23,53,24],[54,23,54,24],[55,23,55,24],[44,23,44,24],[45,23,45,24],[46,23,46,24],[47,23,47,24],[48,23,48,24],[49,23,49,24],[63,23,63,24],[64,23,64,24],[65,23,65,24],[66,23,66,24],[67,23,67,24],[68,23,68,24],[57,23,57,24],[58,23,58,24],[59,23,59,24],[60,23,60,24],[61,23,61,24],[62,23,62,24],[76,23,76,24],[77,23,77,24],[78,23,78,24],[79,23,79,24],[80,23,80,24],[81,23,81,24],[69,23,69,24],[70,23,70,24],[71,23,71,24],[73,23,73,24],[74,23,74,24],[75,23,75,24],[89,23,89,24],[90,23,90,24],[91,23,91,24],[92,23,92,24],[93,23,93,24],[94,23,94,24],[82,23,82,24],[83,23,83,24],[84,23,84,24],[85,23,85,24],[86,23,86,24],[87,23,87,24],[101,23,101,24],[102,23,102,24],[103,23,103,24],[105,23,105,24],[106,23,106,24],[107,23,107,24],[95,23,95,24],[96,23,96,24],[97,23,97,24],[98,23,98,24],[99,23,99,24],[100,23,100,24],[114,23,114,24],[115,23,115,24],[116,23,116,24],[117,23,117,24],[118,23,118,24],[119,23,119,24],[108,23,108,24],[109,23,109,24],[110,23,110,24],[111,23,111,24],[112,23,112,24],[113,23,113,24]]}
[]
[]
[]
[]
[]
["م","رقم البجلوس","الاســـــــــــــــــــــــم","الديانة","الرقم القومى","تاريخ الميلاد","حالة القيد","الجنسية","اللغة العربية","اللغة الانجليزية","الرياضيات","الفيزياء","حاسب آلي","امن صناعي","رسم فني","تخطيط","تك. العمليات ن","تك. خامات","تك. اجهزة","تاريخ الفنون","تك. العمليات ع","المجموع الكلي","التربية الدينية","مواد الرسوب"]
[null,null,null,null,null,null,null,null,"المجموع","المجموع","المجموع","المجموع","المجموع","المجموع","المجموع","المجموع","المجموع","المجموع","المجموع","المجموع","المجموع","المجموع","المجموع"]
[null,null,null,null,null,null,null,null,50,40,50,40,20,20,100,40,60,50,50,40,140,{"$f":"SUM(I8:U8)","v":700},20]
[null,null,null,null,null,null,null,null,25,20,25,20,10,10,50,20,30,25,25,20,70,{"$f":"SUM(I9:U9)","v":350},10]
[1,null,null,null,null,{"$f":"IF(LEN(TRIM($E10))=0,\"\",IF(OR(NOT(ISNUMBER($E10)),LEN($E10)<>14),\"Error_MyNumber\",DATE(IF(LEFT($E10,1)=\"2\",MID($E10,2,2),\"20\"&MID($E10,2,2)),MID($E10,4,2),MID($E10,6,2))))","v":""}]
[2,null,null,null,null,{"$f":"IF(LEN(TRIM($E11))=0,\"\",IF(OR(NOT(ISNUMBER($E11)),LEN($E11)<>14),\"Error_MyNumber\",DATE(IF(LEFT($E11,1)=\"2\",MID($E11,2,2),\"20\"&MID($E11,2,2)),MID($E11,4,2),MID($E11,6,2))))","v":""}]
[3,null,null,null,null,""]
[4,null,null,null,null,""]
[5,null,null,null,null,""]
[6,null,null,null,null,""]
[7,null,null,null,null,""]
[8,null,null,null,null,""]
[9,null,null,null,null,""]
[10,null,null,null,null,""]
[11,null,null,null,null,""]
[12,null,null,null,null,""]
[13,null,null,null,null,""]
[14,null,null,null,null,""]
[15,null,null,null,null,""]
[null,null,null,"      كتبه               املاه               راجع الكتابة                  راجع الاملاء                  مشرف الكنترول                      رئيس الكنترول                          مدير المدرسة           "]
[16,null,null,null,null,""]
[17,null,null,null,null,""]
[18,null,null,null,null,""]
[19,null,null,null,null,""]
[20,null,null,null,null,""]
[21,null,null,null,null,""]
[22,null,null,null,null,""]
[23,null,null,null,null,""]
[24,null,null,null,null,""]
[25,null,null,null,null,""]
[26,null,null,null,null,""]
[27,null,null,null,null,""]
[28,null,null,null,null,""]
[29,null,null,null,null,""]
[30,null,null,null,null,""]
[null,null,null,"      كتبه               املاه               راجع الكتابة                  راجع الاملاء                  مشرف الكنترول                      رئيس الكنترول                          مدير المدرسة           "]
[31,null,null,null,null,""]
[32,null,null,null,null,""]
[33,null,null,null,null,""]
[34,null,null,null,null,""]
[35,null,null,null,null,""]
[36,null,null,null,null,""]
[37,null,null,null,null,""]
[38,null,null,null,null,""]
[39,null,null,null,null,""]
[40,null,null,null,null,""]
[41,null,null,null,null,""]
[42,null,null,null,null,""]
[43,null,null,null,null,""]
[44,null,null,null,null,""]
[45,null,null,null,null,""]
[null,null,null,"      كتبه               املاه               راجع الكتابة                  راجع الاملاء                  مشرف الكنترول                      رئيس الكنترول                          مدير المدرسة           "]
[46,null,null,null,null,""]
[47,null,null,null,null,""]
[48,null,null,null,null,""]
[49,null,null,null,null,""]
[50,null,null,null,null,""]
[51,null,null,null,null,""]
[52,null,null,null,null,""]
[53,null,null,null,null,""]
[54,null,null,null,null,""]
[55,null,null,null,null,""]
[56,null,null,null,null,""]
[57,null,null,null,null,""]
[58,null,null,null,null,""]
[59,null,null,null,null,""]
[60,null,null,null,null,""]
[null,null,null,"      كتبه               املاه               راجع الكتابة                  راجع الاملاء                  مشرف الكنترول                      رئيس الكنترول                          مدير المدرسة           "]
[61,null,null,null,null,""]
[62,null,null,null,null,""]
[63,null,null,null,null,""]
[64,null,null,null,null,""]
[65,null,null,null,null,""]
[66,null,null,null,null,{"$f":"IF(LEN(TRIM($E79))=0,\"\",IF(OR(NOT(ISNUMBER($E79)),LEN($E79)<>14),\"Error_MyNumber\",DATE(IF(LEFT($E79,1)=\"2\",MID($E79,2,2),\"20\"&MID($E79,2,2)),MID($E79,4,2),MID($E79,6,2))))","v":""}]
[67,null,null,null,null,""]
[68,null,null,null,null,""]
[69,null,null,null,null,""]
[70,null,null,null,null,""]
[71,null,null,null,null,""]
[72,null,null,null,null,""]
[73,null,null,null,null,""]
[74,null,null,null,null,""]
[75,null,null,null,null,""]
[null,null,null,"      كتبه               املاه               راجع الكتابة                  راجع الاملاء                  مشرف الكنترول                      رئيس الكنترول                          مدير المدرسة           "]
[76,null,null,null,null,""]
[77,null,null,null,null,""]
[78,null,null,null,null,""]
[79,null,null,null,null,""]
[80,null,null,null,null,""]
[81,null,null,null,null,""]
[82,null,null,null,null,""]
[83,null,null,null,null,""]
[84,null,null,null,null,""]
[85,null,null,null,null,""]
[86,null,null,null,null,""]
[87,null,null,null,null,""]
[88,null,null,null,null,""]
[89,null,null,null,null,""]
[90,null,null,null,null,""]
[null,null,null,"      كتبه               املاه               راجع الكتابة                  راجع الاملاء                  مشرف الكنترول                      رئيس الكنترول                          مدير المدرسة           "]
[91,null,null,null,null,""]
[92,null,null,null,null,""]
[93,null,null,null,null,""]
[94,null,null,null,null,""]
[95,null,null,null,null,""]
[96,null,null,null,null,""]
[97,null,null,null,null,""]
[98,null,null,null,null,""]
[99,null,null,null,null,""]
[100,null,null,null,null,""]
[101,null,null,null,null,""]
[102,null,null,null,null,""]
[103,null,null,null,null,""]
[104,null,null,null,null,""]
[105,null,null,null,null,""]
[null,null,null,"      كتبه               املاه               راجع الكتابة                  راجع الاملاء                  مشرف الكنترول                      رئيس الكنترول                          مدير المدرسة           "]